{"text_format":"1","workbook":"xlsx","n_sheets":7,"sheets":["Calcoli","Messier","Caldwell","CDD","Costellazioni","Telescopi","Pianeti"],"not_rendered":{"charts":0,"images":2,"macros":1,"external_links":0,"defined_names":6,"comments":1,"pivot_tables":0},"unopened":[],"bounds":{"document_bytes":16777216,"sheet_cells":100000,"rows_first":2000,"rows_last":500,"rows_between":2000,"halvings":0,"cell_chars":16384,"cell_head_chars":4096},"cells_cut":0,"cells_raw":0,"read":"whole","date_system":"1900"}

{"sheet":"Calcoli","index":0,"n_rows":147,"n_cols":42,"rows_kept":147,"cut":false,"hidden":false,"merged":[[145,29,146,29],[145,30,146,32],[145,22,146,28],[145,33,146,40],[25,33,25,35],[25,36,25,38],[25,39,25,42],[30,2,30,11],[30,12,30,15],[30,16,30,19],[30,20,30,23],[30,24,30,27],[30,29,30,32],[30,33,30,35],[30,36,30,38],[30,39,30,42],[28,33,28,35],[28,36,28,38],[28,39,28,42],[29,2,29,11],[29,12,29,15],[29,16,29,19],[29,20,29,23],[29,24,29,27],[29,29,29,32],[29,33,29,35],[28,2,28,11],[28,12,28,15],[16,39,18,42],[10,2,12,11],[10,12,12,15],[10,16,12,19],[10,20,12,23],[10,29,12,42],[16,2,18,11],[25,2,25,11],[25,12,25,15],[25,16,25,19],[25,20,25,23],[25,24,25,27],[25,29,25,32],[16,12,18,15],[16,16,18,19],[16,20,18,23],[16,24,18,27],[16,29,18,32],[16,33,18,35],[23,33,23,35],[23,36,23,38],[23,39,23,42],[24,2,24,11],[24,12,24,15],[28,16,28,19],[28,20,28,23],[28,24,28,27],[28,29,28,32],[29,36,29,38],[29,39,29,42],[27,2,27,11],[146,5,146,14],[146,16,146,18],[137,3,137,15],[137,16,137,18],[140,3,141,23],[143,17,143,19],[145,3,146,4],[145,5,145,14],[145,15,146,15],[145,16,145,18],[145,19,146,19],[145,20,146,21],[129,16,129,18],[109,3,109,25],[109,26,109,31],[109,33,109,34],[113,3,114,20],[121,19,121,21],[119,12,119,13],[129,38,129,40],[132,3,133,13],[135,3,135,13],[135,14,135,18],[135,20,135,24],[126,4,126,19],[126,26,126,41],[127,16,127,18],[127,38,127,40],[128,16,128,18],[128,38,128,40],[122,19,122,21],[124,14,124,17],[124,3,124,13],[124,19,124,21],[119,3,119,11],[117,18,117,21],[118,18,118,21],[96,3,96,13],[96,14,96,15],[98,3,98,9],[98,10,98,11],[101,3,102,11],[107,3,107,41],[104,3,104,41],[105,3,105,41],[116,19,116,21],[115,26,115,28],[110,20,110,23],[116,23,116,27],[117,23,117,27],[118,23,118,27],[117,29,117,35],[116,29,116,35],[118,29,118,35],[95,3,95,13],[95,14,95,15],[89,32,89,33],[89,35,89,36],[89,37,89,41],[90,3,90,11],[90,23,90,26],[90,27,90,28],[90,30,90,31],[90,32,90,33],[90,35,90,36],[89,3,89,11],[89,23,89,26],[89,27,89,28],[89,30,89,31],[90,37,90,41],[92,12,92,14],[89,12,89,21],[90,12,90,21],[93,3,93,11],[93,12,93,14],[91,27,91,28],[92,27,92,28],[86,32,86,33],[81,3,82,7],[84,3,84,11],[84,12,84,18],[84,20,84,21],[84,22,84,23],[84,25,84,26],[84,27,84,28],[87,3,87,11],[87,12,87,18],[85,3,85,11],[85,12,85,18],[86,3,86,11],[86,12,86,18],[86,20,86,21],[86,22,86,23],[86,25,86,26],[86,27,86,28],[86,30,86,31],[54,35,54,36],[54,37,55,37],[84,30,84,31],[84,32,84,33],[78,2,79,42],[54,38,55,39],[57,23,58,26],[57,27,58,27],[57,28,57,38],[55,35,55,36],[58,28,58,38],[54,23,55,24],[54,25,55,25],[54,26,54,27],[54,28,55,28],[54,29,54,33],[54,34,55,34],[55,26,55,27],[55,29,55,33],[47,2,48,42],[41,2,41,24],[41,25,41,27],[42,2,42,24],[42,25,42,27],[43,2,43,24],[43,25,43,27],[51,38,52,38],[51,23,52,24],[51,25,52,25],[51,26,51,27],[51,29,52,29],[50,4,51,9],[51,40,52,40],[51,41,51,42],[52,26,52,27],[52,31,52,32],[52,34,52,35],[52,41,52,42],[51,30,52,30],[51,31,51,32],[51,33,52,33],[51,34,51,35],[51,36,52,37],[39,2,39,24],[39,25,39,27],[40,2,40,24],[40,25,40,27],[36,2,36,24],[36,25,36,27],[36,30,36,33],[44,2,44,24],[44,25,44,27],[36,34,36,36],[36,37,36,42],[37,2,37,24],[37,25,37,27],[37,30,37,33],[33,30,35,33],[33,34,35,36],[33,37,35,42],[38,2,38,24],[38,25,38,27],[38,30,38,33],[33,2,35,27],[31,2,31,11],[31,12,31,15],[31,16,31,19],[31,20,31,23],[31,24,31,27],[31,29,31,32],[31,33,31,35],[31,36,31,38],[31,39,31,42],[27,12,27,15],[27,16,27,19],[27,20,27,23],[27,24,27,27],[27,29,27,32],[27,33,27,35],[27,36,27,38],[27,39,27,42],[26,2,26,11],[26,12,26,15],[26,16,26,19],[26,20,26,23],[26,24,26,27],[26,29,26,32],[26,33,26,35],[26,36,26,38],[26,39,26,42],[24,36,24,38],[24,39,24,42],[22,2,22,11],[22,12,22,15],[22,16,22,19],[22,20,22,23],[22,24,22,27],[22,29,22,32],[22,33,22,35],[22,36,22,38],[22,39,22,42],[24,16,24,19],[24,20,24,23],[24,24,24,27],[24,29,24,32],[24,33,24,35],[23,2,23,11],[23,12,23,15],[23,16,23,19],[23,20,23,23],[23,24,23,27],[23,29,23,32],[20,36,20,38],[20,39,20,42],[21,2,21,11],[21,12,21,15],[21,16,21,19],[21,20,21,23],[21,24,21,27],[21,29,21,32],[21,33,21,35],[21,36,21,38],[21,39,21,42],[20,12,20,15],[20,16,20,19],[20,20,20,23],[20,24,20,27],[20,29,20,32],[20,33,20,35],[20,2,20,11],[19,2,19,11],[19,12,19,15],[19,16,19,19],[19,20,19,23],[19,24,19,27],[19,29,19,32],[1,2,2,42],[4,2,4,42],[5,2,8,42],[13,39,13,42],[14,29,14,30],[14,31,14,32],[15,2,15,27],[15,29,15,42],[13,2,13,11],[13,12,13,15],[13,16,13,19],[13,20,13,23],[13,29,13,32],[13,33,13,38],[19,33,19,35],[19,36,19,38],[19,39,19,42],[16,36,18,38]]}
[]
[null,null,"C A L C O L I   P E R   U S O   V I S U A L E"]
[]
[]
[null,null,"SCOPO DEL FOGLIO ELETTRONICO"]
[null,null,"Con questo foglio elettronico è possibile calcolare, in base al telescopio usato, tutte le caratteristiche di ogni oculare, dagli ingrandimenti ottenuti al tempo di attraversamento di un oggetto nel campo inquadrato.\nViene calcolata anche la magnitudine teorica massima raggiungibile in base al cielo ed al telescopio.\nCelle Gialle: inserimento dati, celle grige: risultati delle formule"]
[]
[]
[]
[]
[null,null,"TELESCOPIO IMPIEGATO",null,null,null,null,null,null,null,null,null,"Apertura telescopio [mm]",null,null,null,"Focale telescopio [mm]",null,null,null,"Rapporto focale [f/#]",null,null,null,null,null,null,null,null,"Utilizzo di una lente di Barlow o riduttori di focale\n[SI/NO]"]
[]
[]
[null,null,"Celestron C9¼",null,null,null,null,null,null,null,null,null,{"$f":"VLOOKUP($C$14,Telescopi!A:E,3,FALSE)","v":235},null,null,null,{"$f":"VLOOKUP($C$14,Telescopi!A:E,4,FALSE)*IF(AD14=\"NO\",1,AN14)","v":2350},null,null,null,{"$f":"$Q$14/$M$14","v":10},null,null,null,null,null,null,null,null,"NO",null,null,null,"Moltiplica",null,null,null,null,null,0.5]
[null,null,null,null,null,null,null,null,null,null,null,null,null,null,null,null,null,null,null,null,null,null,null,null,null,null,null,null,null,"SI",null,"NO"]
[null,"\n","DATI OCULARI:",null,null,null,null,null,null,null,null,null,null,null,null,null,null,null,null,null,null,null,null,null,null,null,null,null,null,"RISULTATI"]
[null,"\n","MARCA E MODELLO",null,null,null,null,null,null,null,null,null,"Focale oculare [mm]",null,null,null,"Estrazione pupillare [mm]",null,null,null,"Campo apparente [gradi]",null,null,null,"Field Stop [mm]",null,null,null,null,"Ingrand.",null,null,null,"Pupilla uscita [mm]",null,null,"Campo reale [gradi]",null,null,"Tempo attraver. [sec]"]
[]
[]
[null,null,"VIXEN LV-W",null,null,null,null,null,null,null,null,null,42,null,null,null,20,null,null,null,68,null,null,null,{"$f":"IF(U20=\"\",\"\",(U20*M20/57.3))","v":49.842931937172779},null,null,null,null,{"$f":"IF(OR($Q$14=0,C20=\"\",M20=\"\",Q20=\"\",U20=\"\"),\"\",$Q$14/M20)","v":55.952380952380949},null,null,null,{"$f":"IF(OR($M$14=0,$Q$14=0,AD20=\"\"),\"\",IF($AD$14=\"NO\",M20/$U$14,M20/$AN$14/$U$14))","v":4.2},null,null,{"$f":"IF(AH20=\"\",\"\",IF(U20/AD20>$AL$37,$AL$37,U20/AD20))","v":1.2153191489361703},null,null,{"$f":"IF($AK20=\"\",\"\",$AK20/(360/(60*60*24)))","v":291.67659574468087}]
[null,null,"VIXEN LV-W",null,null,null,null,null,null,null,null,null,22,null,null,null,20,null,null,null,65,null,null,null,24.956369982547994,null,null,null,null,106.81818181818181,null,null,null,2.2000000000000002,null,null,0.60851063829787233,null,null,146.04255319148936]
[null,null,"VIXEN LV-W",null,null,null,null,null,null,null,null,null,17,null,null,null,20,null,null,null,65,null,null,null,19.284467713787087,null,null,null,null,138.23529411764707,null,null,null,1.7,null,null,0.47021276595744677,null,null,112.85106382978722]
[null,null,"VIXEN LV-W",null,null,null,null,null,null,null,null,null,13,null,null,null,20,null,null,null,65,null,null,null,14.74694589877836,null,null,null,null,180.76923076923077,null,null,null,1.3,null,null,0.35957446808510635,null,null,86.297872340425528]
[null,null,"VIXEN LV-W",null,null,null,null,null,null,null,null,null,8,null,null,null,20,null,null,null,65,null,null,null,9.0750436300174524,null,null,null,null,293.75,null,null,null,0.8,null,null,0.22127659574468084,null,null,53.106382978723403]
[null,null,"VIXEN LV-W",null,null,null,null,null,null,null,null,null,5,null,null,null,20,null,null,null,65,null,null,null,5.671902268760908,null,null,null,null,470,null,null,null,0.5,null,null,0.13829787234042554,null,null,33.191489361702132]
[null,null,"Meade Plössl 3000 II",null,null,null,null,null,null,null,null,null,25,null,null,null,{"$f":"M26*35%","v":8.75},null,null,null,50,null,null,null,{"$f":"IF(U26=\"\",\"\",(U26*M26/57.3))","v":21.815008726003491},null,null,null,null,{"$f":"IF(OR($Q$14=0,C26=\"\",M26=\"\",Q26=\"\",U26=\"\"),\"\",$Q$14/M26)","v":94},null,null,null,{"$f":"IF(OR($M$14=0,$Q$14=0,AD26=\"\"),\"\",IF($AD$14=\"NO\",M26/$U$14,M26/$AN$14/$U$14))","v":2.5},null,null,{"$f":"IF(AH26=\"\",\"\",IF(U26/AD26>$AL$37,$AL$37,U26/AD26))","v":0.53191489361702127},null,null,127.65957446808511]
[null,null,"Meade Plössl 3000 II",null,null,null,null,null,null,null,null,null,16,null,null,null,{"$f":"M27*35%","v":5.6},null,null,null,50,null,null,null,13.961605584642234,null,null,null,null,146.875,null,null,null,1.6,null,null,0.34042553191489361,null,null,81.702127659574472]
[null,null,"Meade Plössl 3000 II",null,null,null,null,null,null,null,null,null,9.5,null,null,null,{"$f":"M28*35%","v":3.3249999999999997},null,null,null,50,null,null,null,8.2897033158813276,null,null,null,null,247.36842105263159,null,null,null,0.95,null,null,0.20212765957446807,null,null,48.51063829787234]
[null,null,"Meade Plössl 3000 II",null,null,null,null,null,null,null,null,null,6.7,null,null,null,{"$f":"M29*35%","v":2.3449999999999998},null,null,null,50,null,null,null,5.846422338568936,null,null,null,null,350.74626865671638,null,null,null,0.67,null,null,0.14255319148936171,null,null,34.212765957446813]
[null,null,"Meade Plössl 3000 II",null,null,null,null,null,null,null,null,null,5,null,null,null,{"$f":"M30*35%","v":1.75},null,null,null,50,null,null,null,4.3630017452006982,null,null,null,null,470,null,null,null,0.5,null,null,0.10638297872340426,null,null,25.531914893617021]
[null,null,null,null,null,null,null,null,null,null,null,null,null,null,null,null,null,null,null,null,null,null,null,null,"",null,null,null,null,"",null,null,null,"",null,null,"",null,null,""]
[null,null,"Reticolo illuminato",null,null,null,null,null,null,null,null,null,12.5,null,null,null,10,null,null,null,50,null,null,null,10.907504363001745,null,null,null,null,188,null,null,null,1.25,null,null,0.26595744680851063,null,null,63.829787234042556]
[]
[null,"\n","DATI DI OSSERVAZIONE",null,null,null,null,null,null,null,null,null,null,null,null,null,null,null,null,null,null,null,null,null,null,null,null,null,null,null,"Tipologia strumento",null,null,null,"Porta oculari",null,null,"Massimo campo inquadrabile [gradi]"]
[]
[]
[null,null,"Pupilla d'entrata media dell'osservatore (mm)",null,null,null,null,null,null,null,null,null,null,null,null,null,null,null,null,null,null,null,null,null,null,6.5,null,null,null,null,"Riflettore",null,null,null,50.2,null,null,{"$f":"IF(AI37=31.8,(AI37*180/PI())/Q14,(AI37*180/PI())/Q14)","v":1.2239353751305244}]
[null,null,"Brillantezza superficiale [SQM]",null,null,null,null,null,null,null,null,null,null,null,null,null,null,null,null,null,null,null,null,null,null,21,null,null,null,null,"Rifrattore",null,null,null,31.8]
[null,null,"Magnitudine limite teorica a occhio nudo",null,null,null,null,null,null,null,null,null,null,null,null,null,null,null,null,null,null,null,null,null,null,{"$f":"7.93-5*LOG10(10^(4.316-(Z38/5))+1)","v":6.1155425723208552},null,null,null,null,"Riflettore",null,null,null,50.2]
[null,null,"Magnitudine limite teorica con telescopio (nuova formula)",null,null,null,null,null,null,null,null,null,null,null,null,null,null,null,null,null,null,null,null,null,null,{"$f":"Z39-2+4*LOG10(M14)","v":13.5998140214078}]
[null,null,"Potere risolutivo teorico (\" d'arco)",null,null,null,null,null,null,null,null,null,null,null,null,null,null,null,null,null,null,null,null,null,null,{"$f":"120/M14","v":0.51063829787234039}]
[null,null,"Focale massima (teorica) dell'oculare utilizzabile (mm)",null,null,null,null,null,null,null,null,null,null,null,null,null,null,null,null,null,null,null,null,null,null,{"$f":"Z37*U14","v":65}]
[null,null,"Minimo ingrandimento (teorico) ottenibile senza perdita di luce",null,null,null,null,null,null,null,null,null,null,null,null,null,null,null,null,null,null,null,null,null,null,{"$f":"Q14/Z42","v":36.153846153846153}]
[null,null,"Massimo ingrandimento ottenibile",null,null,null,null,null,null,null,null,null,null,null,null,null,null,null,null,null,null,null,null,null,null,{"$f":"IF(AE37=\"Rifrattore\",2*$M$14,IF(AE37=\"Riflettore\",1.5*$M$14,1.8*$M$14))","v":352.5}]
[null,null,"Luce raccolta in più rispetto alla propria pupilla",null,null,null,null,null,null,null,null,null,null,null,null,null,null,null,null,null,null,null,null,null,null,{"$f":"(M14^2)/(Z37^2)","v":1307.1005917159764}]
[]
[]
[null,null,"FORMULARIO ESPLICATIVO"]
[]
[]
[null,null,null,null,"L E G E N D A"]
[null,null,null,null,null,null,null,null,null,null,null,null,null,null,null,null,null,null,null,null,null,null,null,"RFt",null,"=","LFt",null,null,"I","=","LFt",null,"=","Dt",null,"PU",null,"=","Dt","=","LFo"]
[null,null,null,null,null,null,null,null,null,null,null,null,null,null,null,null,null,null,null,null,null,null,null,null,null,null,"Dt",null,null,null,null,"LFo",null,null,"PU",null,null,null,null,"I",null,"RFt"]
[null,null,null,"1)","Diaframma di campo oculare - Field Stop"]
[null,null,null,"2)","Lunghezza focale oculare - Eyespace Focal Length",null,null,null,null,null,null,null,null,null,null,null,null,null,null,null,null,null,null,"FOVo",null,"=","AFOV",null,"=","AFOV x LFo",null,null,null,null,"=","FSo",null,"x","57,3°"]
[null,null,null,"3)","Estrazione pupillare - Eye Relief",null,null,null,null,null,null,null,null,null,null,null,null,null,null,null,null,null,null,null,null,null,"I",null,null,"LFt",null,null,null,null,null,"LFt"]
[null,null,null,"4)","Pupilla d'uscita - Exit Pupil"]
[null,null,null,null,null,null,null,null,null,null,null,null,null,null,null,null,null,null,null,null,null,null,null,"FOVt max",null,null,null,"=","ø portaoculari x 180°/PU"]
[null,null,null,"D:",null,"Diametro apertura del telescopio",null,null,null,null,null,null,null,null,null,null,null,null,null,null,null,null,null,null,null,null,null,null,"LFt"]
[null,null,null,"LF:",null,"Lunghezza focale"]
[null,null,null,"RF:",null,"Rapporto focale"]
[null,null,null,"PU:",null,"Pupilla di uscita"]
[null,null,null,"FOV:",null,"Campo reale inquadrato"]
[null,null,null,"AFOV:",null,"Campo apparente dell'oculare"]
[null,null,null,"FS:",null,"Diaframma di campo - Field Stop"]
[null,null,null,"I:",null,"Ingrandimento"]
[null,null,null,"t:",null,"Telescopio"]
[null,null,null,"o:",null,"Oculare"]
[]
[]
[]
[]
[]
[]
[]
[]
[]
[]
[null,null,"C A L C O L I   P E R   F O T O G R A F I A"]
[]
[]
[null,null,null,"S E T U P"]
[]
[]
[null,null,null,"Telescopio di ripresa:",null,null,null,null,null,null,null,null,"Celestron C9¼",null,null,null,null,null,null,null,"Dr:",null,{"$f":"VLOOKUP($M85,Telescopi!$A:$E,3,FALSE)","v":235},null,null,"Fr:",null,{"$f":"VLOOKUP($M85,Telescopi!$A:$E,4,FALSE)*IF(M86<>0,M86,1)","v":2350},null,null,"RFr:",null,{"$f":"AB85/W85","v":10}]
[null,null,null,"Variatore di focale:"]
[null,null,null,"Telescopio guida:",null,null,null,null,null,null,null,null,"Skywatcher 70/500",null,null,null,null,null,null,null,"Dg:",null,{"$f":"VLOOKUP($M87,Telescopi!$A:$E,3,FALSE)","v":70},null,null,"Fg:",null,{"$f":"VLOOKUP($M87,Telescopi!$A:$E,4,FALSE)*IF(M88<>0,M88,1)","v":500},null,null,"RFg:",null,{"$f":"AB87/W87","v":7.1428571428571432}]
[null,null,null,"Variatore di focale:"]
[]
[null,null,null,"Camera di ripresa:",null,null,null,null,null,null,null,null,"Canon 450D/Rebel XSi",null,null,null,null,null,null,null,null,null,null,"Binning:",null,null,null,"1x1",null,null,"µm:",null,{"$f":"VLOOKUP(M90,CDD!A:I,8,FALSE)","v":5.2},null,null,"Ris:",null,{"$f":"VLOOKUP(M90,CDD!A:I,7,FALSE)","v":"4272 x 2848"}]
[null,null,null,"Camera guida:",null,null,null,null,null,null,null,null,"ASI120MM",null,null,null,null,null,null,null,null,null,null,"Binning:",null,null,null,"1x1",null,null,"µm:",null,{"$f":"VLOOKUP(M91,CDD!A:I,8,FALSE)","v":3.75},null,null,"Ris:",null,{"$f":"VLOOKUP(M91,CDD!A:I,7,FALSE)","v":"1280 x 960"}]
[null,null,null,null,null,null,null,null,null,null,null,null,null,null,null,null,null,null,null,null,null,null,null,null,null,null,null,"1x1"]
[null,null,null,"Risoluzione [Arcsec]",null,null,null,null,null,null,null,null,{"$f":"120/W85","v":0.51063829787234039},null,null,null,null,null,null,null,null,null,null,null,null,null,null,"2x2"]
[null,null,null,"Dettaglio minimo [m]",null,null,null,null,null,null,null,null,{"$f":"(4.8*10^-3)*M93*400000","v":980.42553191489344}]
[]
[null,null,null,"Focale oculare usato [mm]:",null,null,null,null,null,null,null,null,null,null,9.5]
[null,null,null,"Distanza oculare-CDD [mm]:",null,null,null,null,null,null,null,null,null,null,70]
[]
[null,null,null,"Seeing presente:",null,null,null,null,null,null,3,null,null,1,1.5,2,2.5,3,3.5,4,4.5,5]
[]
[]
[null,null,null,"A U T O G U I D A"]
[]
[]
[null,null,null,"Dipende dalla focale dei telescopi di ripresa e di guida e dalle dimensioni dei pixel delle"]
[null,null,null,"camere di acquisizione e di guida, secondo la seguente formula:"]
[]
[null,null,null,"Fg / [Fr * (Pg / (5 * Pr))] > 2"]
[]
[null,null,null,"Secondo tale formula, l'attuale combinazione è una scelta ",null,null,null,null,null,null,null,null,null,null,null,null,null,null,null,null,null,null,null,null,null,null,{"$f":"IF(AB87/(AB85*(VLOOKUP($M91,CDD!$A:$I,8,FALSE)*IF(AB91=\"1x1\",1,IF(AB91=\"2x2\",2))/(5*VLOOKUP($M90,CDD!$A:$I,8,FALSE)*IF(AB90=\"1x1\",1,IF(AB90=\"2x2\",2)))))>2,\"valida\",\"non valida\")","v":"non valida"},null,null,null,null,null,"(",{"$f":"AB87/(AB85*(VLOOKUP($M91,CDD!$A:$I,8,FALSE)*IF(AB91=\"1x1\",1,IF(AB91=\"2x2\",2))/(5*VLOOKUP($M90,CDD!$A:$I,8,FALSE)*IF(AB90=\"1x1\",1,IF(AB90=\"2x2\",2)))))","v":1.4751773049645391},null,")"]
[null,null,null,"La focale di guida minima consigliata è: ",null,null,null,null,null,null,null,null,null,null,null,null,null,null,null,null,{"$f":"2*(AB85*(VLOOKUP($M91,CDD!$A:$I,8,FALSE)*IF(AB91=\"1x1\",1,IF(AB91=\"2x2\",2))/(5*VLOOKUP($M90,CDD!$A:$I,8,FALSE)*IF(AB90=\"1x1\",1,IF(AB90=\"2x2\",2)))))","v":677.88461538461536}]
[]
[]
[null,null,null,"F O C A L I  T E O R I C H E  H I - R E S"]
[]
[null,null,null,null,null,null,null,null,null,null,null,null,null,null,null,null,null,null,null,"Rosso","Verde","Blu","IR-Pass"]
[null,null,null,null,null,null,null,null,null,null,null,null,null,null,null,null,null,null,"I°","Verde",null,null,null,"II° - Plinio",null,null,null,null,null,"Visibile [550nm]"]
[null,null,null,"Focale di campionamento ideale [mm]:",null,null,null,null,null,null,null,null,null,null,null,null,null,null,{"$f":"(AG90/1000*W85*3)/(IF(T117=\"Rosso\",650,IF(T117=\"Verde\",510,IF(T117=\"Blu\",475,IF(T117=\"IR-Pass\",685))))/1000000)/1.22","v":5891.996142719383},null,null,null,null,{"$f":"VLOOKUP($M90,CDD!$A:$I,8,FALSE)*IF(AB90=\"1x1\",1,IF(AB90=\"2x2\",2))*W85*3.438","v":4201.2359999999999},null,null,null,null,null,{"$f":"((AG90/1000)*W85*206265)/37","v":6812.3197297297293}]
[null,null,null,"Moltiplicatore focale:",null,null,null,null,null,null,null,null,null,null,null,null,null,null,{"$f":"S118/AB85","v":2.507232401157184},null,null,null,null,{"$f":"X118/AB85","v":1.78776},null,null,null,null,null,{"$f":"AD118/AB85","v":2.8988594594594592}]
[null,null,null,"µm sensore ideale:",null,null,null,null,null,null,null,null,{"$f":"AB85/(W85*3.438)","v":2.9086678301337985}]
[]
[null,null,null,"Diametro limite teorico [mm]:",null,null,null,null,null,null,null,null,null,null,null,null,null,null,null,{"$f":"3.5*IF(K99=5,34,IF(K99=4.5,37.5,IF(K99=4,40,IF(K99=3.5,58,IF(K99=3,104,IF(K99=2.5,150,IF(K99=2,250,IF(K99=1.5,300,350))))))))","v":364}]
[null,null,null,"Ingrandimento a focale di campionamento:",null,null,null,null,null,null,null,null,null,null,null,null,null,null,null,{"$f":"(X118/VLOOKUP($M90,CDD!$A:$I,5,FALSE))/1.38888888888","v":136.25630270357476}]
[]
[null,null,null,"Tempo Massimo di ripresa di",null,null,null,null,null,null,null,null,null,null,"Marte",null,null,null,":",{"$f":"7.72*10^(-7)*(VLOOKUP(O125,Pianeti!A2:D10,2,FALSE)*M93*VLOOKUP(O125,Pianeti!A2:D10,3,FALSE))/VLOOKUP(O125,Pianeti!A2:D10,4,FALSE)","v":804.88971214017499}]
[]
[null,null,null,null,"DATI RIPRESA A FUOCO DIRETTO",null,null,null,null,null,null,null,null,null,null,null,null,null,null,null,null,null,null,null,null,null,"DATI RIPRESA IN PROIEZIONE DI OCULARE"]
[null,null,null,null,null,"Lunghezza focale:",null,null,null,null,null,null,null,null,null,null,{"$f":"AB85","v":2350},null,null,null,null,null,null,null,null,null,null,"Lunghezza focale:",null,null,null,null,null,null,null,null,null,null,{"$f":"AB85*((O97/O96)-1)","v":14965.78947368421}]
[null,null,null,null,null,"Ingrandimento apparente:",null,null,null,null,null,null,null,null,null,null,{"$f":"(AB85/VLOOKUP($M90,CDD!$A:$I,5,FALSE))/1.38888888888","v":76.216216216704012},null,null,null,null,null,null,null,null,null,null,"Ingrandimento apparente:",null,null,null,null,null,null,null,null,null,null,{"$f":"(AM128/VLOOKUP($M90,CDD!$A:$I,5,FALSE))/1.38888888888","v":485.3769559063781}]
[null,null,null,null,null,"Oculare equivalente:",null,null,null,null,null,null,null,null,null,null,{"$f":"Q128/Q129","v":30.833333333135997},null,null,null,null,null,null,null,null,null,null,"Oculare equivalente:",null,null,null,null,null,null,null,null,null,null,{"$f":"AM128/AM129","v":30.833333333136}]
[]
[]
[null,null,null,"D A T I   D E E P - S K Y"]
[]
[]
[null,null,null,"Campo inquadrato [°,',\"]:",null,null,null,null,null,null,null,null,null,null,{"$f":"Convert_Degree(57.296*VLOOKUP(M90,CDD!$A:$I,5,FALSE)/AB85)","v":" 0° 32' 29\""},null,null,null,null,"x",{"$f":"Convert_Degree(57.296*VLOOKUP(M90,CDD!$A:$I,6,FALSE)/AB85)","v":" 0° 21' 39\""}]
[]
[null,null,null,"Scala di immagine [Arcsec/Pix]:",null,null,null,null,null,null,null,null,null,null,null,null,{"$f":"206.265*(VLOOKUP($M90,CDD!$A:$I,6,FALSE)*IF(AB90=\"1x1\",1,IF(AB90=\"2x2\",2))/AB85)","v":1.2990306382978722}]
[]
[]
[null,null,null,"C A L C O L O   F O C A L E   D I   R I P R E S A"]
[]
[]
[null,null,null,"Campionamento immagine [Arcosec]:",null,null,null,null,null,null,null,null,null,null,null,null,null,0.93,null,null,null,"* Valore registrato tramite altra fonte"]
[]
[null,null,null,"RFr:",null,"Px [µm] x 206,3",null,null,null,null,null,null,null,null,null,"=",{"$f":"VLOOKUP(M90,CDD!$A:$I,8,FALSE)*206.3","v":1072.76},null,null,"=",{"$f":"Q146/Q147","v":4.9085335163578128},null,"Rapporto focale",null,null,null,null,null,null,"=",{"$f":"U146*W85","v":1153.505376344086},null,null,"Focale equivalente"]
[null,null,null,null,null,"Dr [mm] x Campionamento",null,null,null,null,null,null,null,null,null,null,{"$f":"VLOOKUP(M85,Telescopi!$A:$E,3,FALSE)*R144","v":218.55}]

{"sheet":"Messier","index":1,"n_rows":111,"n_cols":13,"rows_kept":111,"cut":false,"hidden":false,"merged":[]}
["CATALOGO","NGC","Nome comune","Tipo di oggetto","Costellazione"," M.A. ","Zona","Culmine","Stagione","Dim [arcsec]","A. R. [H.m.]","Dec. [° ']",{"$f":"TODAY()","v":"2014-06-27"}]
["M1","NGC 1952","Nebulosa del Granchio","Resto di supernova","Toro",9,{"$f":"VLOOKUP(E2,Costellazioni!A:E,2,FALSE)","v":"Equatoriale"},{"$f":"VLOOKUP(E2,Costellazioni!A:E,3,FALSE)","v":"2014-01-01"},{"$f":"VLOOKUP(E2,Costellazioni!A:E,4,FALSE)","v":"Inverno"}]
["M45","NGC 1432","Pleiadi","Ammasso aperto","Toro",1.4,{"$f":"VLOOKUP(E3,Costellazioni!A:E,2,FALSE)","v":"Equatoriale"},{"$f":"VLOOKUP(E3,Costellazioni!A:E,3,FALSE)","v":"2014-01-01"},{"$f":"VLOOKUP(E3,Costellazioni!A:E,4,FALSE)","v":"Inverno"}]
["M42","NGC 1976","Nebulosa di Orione","Nebulosa diffusa","Orione",5,{"$f":"VLOOKUP(E4,Costellazioni!A:E,2,FALSE)","v":"Equatoriale"},{"$f":"VLOOKUP(E4,Costellazioni!A:E,3,FALSE)","v":"2014-01-15"},{"$f":"VLOOKUP(E4,Costellazioni!A:E,4,FALSE)","v":"Inverno"}]
["M43","NGC 1982","Nebulosa De Mairan","Nebulosa diffusa","Orione",7,{"$f":"VLOOKUP(E5,Costellazioni!A:E,2,FALSE)","v":"Equatoriale"},{"$f":"VLOOKUP(E5,Costellazioni!A:E,3,FALSE)","v":"2014-01-15"},{"$f":"VLOOKUP(E5,Costellazioni!A:E,4,FALSE)","v":"Inverno"}]
["M78","NGC 2068",null,"Nebulosa diffusa","Orione",8,{"$f":"VLOOKUP(E6,Costellazioni!A:E,2,FALSE)","v":"Equatoriale"},{"$f":"VLOOKUP(E6,Costellazioni!A:E,3,FALSE)","v":"2014-01-15"},{"$f":"VLOOKUP(E6,Costellazioni!A:E,4,FALSE)","v":"Inverno"}]
["M79","NGC 1904",null,"Ammasso globulare","Lepre",8.5,{"$f":"VLOOKUP(E7,Costellazioni!A:E,2,FALSE)","v":"Equatoriale"},{"$f":"VLOOKUP(E7,Costellazioni!A:E,3,FALSE)","v":"2014-01-15"},{"$f":"VLOOKUP(E7,Costellazioni!A:E,4,FALSE)","v":"Inverno"}]
["M36","NGC 1960",null,"Ammasso aperto","Auriga",6.5,{"$f":"VLOOKUP(E8,Costellazioni!A:E,2,FALSE)","v":"Boreale"},{"$f":"VLOOKUP(E8,Costellazioni!A:E,3,FALSE)","v":"2014-01-20"},{"$f":"VLOOKUP(E8,Costellazioni!A:E,4,FALSE)","v":"Inverno"}]
["M37","NGC 2099",null,"Ammasso aperto","Auriga",6,{"$f":"VLOOKUP(E9,Costellazioni!A:E,2,FALSE)","v":"Boreale"},{"$f":"VLOOKUP(E9,Costellazioni!A:E,3,FALSE)","v":"2014-01-20"},{"$f":"VLOOKUP(E9,Costellazioni!A:E,4,FALSE)","v":"Inverno"}]
["M38","NGC 1912",null,"Ammasso aperto","Auriga",7,{"$f":"VLOOKUP(E10,Costellazioni!A:E,2,FALSE)","v":"Boreale"},{"$f":"VLOOKUP(E10,Costellazioni!A:E,3,FALSE)","v":"2014-01-20"},{"$f":"VLOOKUP(E10,Costellazioni!A:E,4,FALSE)","v":"Inverno"}]
["M41","NGC 2287",null,"Ammasso aperto","Cane Maggiore",5,{"$f":"VLOOKUP(E11,Costellazioni!A:E,2,FALSE)","v":"Equatoriale"},{"$f":"VLOOKUP(E11,Costellazioni!A:E,3,FALSE)","v":"2014-02-01"},{"$f":"VLOOKUP(E11,Costellazioni!A:E,4,FALSE)","v":"Inverno"}]
["M35","NGC 2168",null,"Ammasso aperto","Gemelli",5.5,{"$f":"VLOOKUP(E12,Costellazioni!A:E,2,FALSE)","v":"Equatoriale"},{"$f":"VLOOKUP(E12,Costellazioni!A:E,3,FALSE)","v":"2014-02-05"},{"$f":"VLOOKUP(E12,Costellazioni!A:E,4,FALSE)","v":"Inverno"}]
["M50","NGC 2323",null,"Ammasso aperto","Unicorno",7,{"$f":"VLOOKUP(E13,Costellazioni!A:E,2,FALSE)","v":"Equatoriale"},{"$f":"VLOOKUP(E13,Costellazioni!A:E,3,FALSE)","v":"2014-02-05"},{"$f":"VLOOKUP(E13,Costellazioni!A:E,4,FALSE)","v":"Inverno"}]
["M46","NGC 2437",null,"Ammasso aperto","Poppa",6.5,{"$f":"VLOOKUP(E14,Costellazioni!A:E,2,FALSE)","v":"Australe"},{"$f":"VLOOKUP(E14,Costellazioni!A:E,3,FALSE)","v":"2014-02-17"},{"$f":"VLOOKUP(E14,Costellazioni!A:E,4,FALSE)","v":"Inverno"}]
["M47","NGC 2422",null,"Ammasso aperto","Poppa",4.5,{"$f":"VLOOKUP(E15,Costellazioni!A:E,2,FALSE)","v":"Australe"},{"$f":"VLOOKUP(E15,Costellazioni!A:E,3,FALSE)","v":"2014-02-17"},{"$f":"VLOOKUP(E15,Costellazioni!A:E,4,FALSE)","v":"Inverno"}]
["M93","NGC 2447",null,"Ammasso aperto","Poppa",6.5,{"$f":"VLOOKUP(E16,Costellazioni!A:E,2,FALSE)","v":"Australe"},{"$f":"VLOOKUP(E16,Costellazioni!A:E,3,FALSE)","v":"2014-02-17"},{"$f":"VLOOKUP(E16,Costellazioni!A:E,4,FALSE)","v":"Inverno"}]
["M44","NGC 2632","Presepe","Ammasso aperto","Cancro",3.1,{"$f":"VLOOKUP(E17,Costellazioni!A:E,2,FALSE)","v":"Equatoriale"},{"$f":"VLOOKUP(E17,Costellazioni!A:E,3,FALSE)","v":"2014-02-28"},{"$f":"VLOOKUP(E17,Costellazioni!A:E,4,FALSE)","v":"Inverno"}]
["M67","NGC 2682",null,"Ammasso aperto","Cancro",7.5,{"$f":"VLOOKUP(E18,Costellazioni!A:E,2,FALSE)","v":"Equatoriale"},{"$f":"VLOOKUP(E18,Costellazioni!A:E,3,FALSE)","v":"2014-02-28"},{"$f":"VLOOKUP(E18,Costellazioni!A:E,4,FALSE)","v":"Inverno"}]
["M105","NGC 3379",null,"Galassia ellittica","Leone",11,{"$f":"VLOOKUP(E19,Costellazioni!A:E,2,FALSE)","v":"Equatoriale"},{"$f":"VLOOKUP(E19,Costellazioni!A:E,3,FALSE)","v":"2014-04-01"},{"$f":"VLOOKUP(E19,Costellazioni!A:E,4,FALSE)","v":"Primavera"}]
["M65","NGC 3623",null,"Galassia spirale","Leone",10.5,{"$f":"VLOOKUP(E20,Costellazioni!A:E,2,FALSE)","v":"Equatoriale"},{"$f":"VLOOKUP(E20,Costellazioni!A:E,3,FALSE)","v":"2014-04-01"},{"$f":"VLOOKUP(E20,Costellazioni!A:E,4,FALSE)","v":"Primavera"}]
["M66","NGC 3627",null,"Galassia spirale","Leone",10,{"$f":"VLOOKUP(E21,Costellazioni!A:E,2,FALSE)","v":"Equatoriale"},{"$f":"VLOOKUP(E21,Costellazioni!A:E,3,FALSE)","v":"2014-04-01"},{"$f":"VLOOKUP(E21,Costellazioni!A:E,4,FALSE)","v":"Primavera"}]
["M95","NGC 3351",null,"Galassia spirale barrata ","Leone",11,{"$f":"VLOOKUP(E22,Costellazioni!A:E,2,FALSE)","v":"Equatoriale"},{"$f":"VLOOKUP(E22,Costellazioni!A:E,3,FALSE)","v":"2014-04-01"},{"$f":"VLOOKUP(E22,Costellazioni!A:E,4,FALSE)","v":"Primavera"}]
["M96","NGC 3368",null,"Galassia spirale","Leone",10.5,{"$f":"VLOOKUP(E23,Costellazioni!A:E,2,FALSE)","v":"Equatoriale"},{"$f":"VLOOKUP(E23,Costellazioni!A:E,3,FALSE)","v":"2014-04-01"},{"$f":"VLOOKUP(E23,Costellazioni!A:E,4,FALSE)","v":"Primavera"}]
["M101","NGC 5457","Galassia Girandola","Galassia spirale","Orsa Maggiore",8.5,{"$f":"VLOOKUP(E24,Costellazioni!A:E,2,FALSE)","v":"Boreale"},{"$f":"VLOOKUP(E24,Costellazioni!A:E,3,FALSE)","v":"2014-04-11"},{"$f":"VLOOKUP(E24,Costellazioni!A:E,4,FALSE)","v":"Primavera"}]
["M108","NGC 3556",null,"Galassia spirale","Orsa Maggiore",11,{"$f":"VLOOKUP(E25,Costellazioni!A:E,2,FALSE)","v":"Boreale"},{"$f":"VLOOKUP(E25,Costellazioni!A:E,3,FALSE)","v":"2014-04-11"},{"$f":"VLOOKUP(E25,Costellazioni!A:E,4,FALSE)","v":"Primavera"}]
["M109","NGC 3992",null,"Galassia spirale barrata ","Orsa Maggiore",11,{"$f":"VLOOKUP(E26,Costellazioni!A:E,2,FALSE)","v":"Boreale"},{"$f":"VLOOKUP(E26,Costellazioni!A:E,3,FALSE)","v":"2014-04-11"},{"$f":"VLOOKUP(E26,Costellazioni!A:E,4,FALSE)","v":"Primavera"}]
["M40","Nessuno",null,"Asterismo","Orsa Maggiore",9,{"$f":"VLOOKUP(E27,Costellazioni!A:E,2,FALSE)","v":"Boreale"},{"$f":"VLOOKUP(E27,Costellazioni!A:E,3,FALSE)","v":"2014-04-11"},{"$f":"VLOOKUP(E27,Costellazioni!A:E,4,FALSE)","v":"Primavera"}]
["M81","NGC 3031","Galassia di Bode","Galassia spirale","Orsa Maggiore",8.5,{"$f":"VLOOKUP(E28,Costellazioni!A:E,2,FALSE)","v":"Boreale"},{"$f":"VLOOKUP(E28,Costellazioni!A:E,3,FALSE)","v":"2014-04-11"},{"$f":"VLOOKUP(E28,Costellazioni!A:E,4,FALSE)","v":"Primavera"}]
["M82","NGC 3034","Galassia Sigaro","Galassia attiva","Orsa Maggiore",9.5,{"$f":"VLOOKUP(E29,Costellazioni!A:E,2,FALSE)","v":"Boreale"},{"$f":"VLOOKUP(E29,Costellazioni!A:E,3,FALSE)","v":"2014-04-11"},{"$f":"VLOOKUP(E29,Costellazioni!A:E,4,FALSE)","v":"Primavera"}]
["M97","NGC 3587","Nebulosa Gufo","Nebulosa planetaria","Orsa Maggiore",12,{"$f":"VLOOKUP(E30,Costellazioni!A:E,2,FALSE)","v":"Boreale"},{"$f":"VLOOKUP(E30,Costellazioni!A:E,3,FALSE)","v":"2014-04-11"},{"$f":"VLOOKUP(E30,Costellazioni!A:E,4,FALSE)","v":"Primavera"}]
["M48","NGC 2548",null,"Ammasso aperto","Idra",5.5,{"$f":"VLOOKUP(E31,Costellazioni!A:E,2,FALSE)","v":"Equatoriale"},{"$f":"VLOOKUP(E31,Costellazioni!A:E,3,FALSE)","v":"2014-04-15"},{"$f":"VLOOKUP(E31,Costellazioni!A:E,4,FALSE)","v":"Primavera"}]
["M68","NGC 4590",null,"Ammasso globulare","Idra",9,{"$f":"VLOOKUP(E32,Costellazioni!A:E,2,FALSE)","v":"Equatoriale"},{"$f":"VLOOKUP(E32,Costellazioni!A:E,3,FALSE)","v":"2014-04-15"},{"$f":"VLOOKUP(E32,Costellazioni!A:E,4,FALSE)","v":"Primavera"}]
["M83","NGC 5236","Galassia Girandola del Sud","Galassia spirale","Idra",8.5,{"$f":"VLOOKUP(E33,Costellazioni!A:E,2,FALSE)","v":"Equatoriale"},{"$f":"VLOOKUP(E33,Costellazioni!A:E,3,FALSE)","v":"2014-04-15"},{"$f":"VLOOKUP(E33,Costellazioni!A:E,4,FALSE)","v":"Primavera"}]
["M100","NGC 4321",null,"Galassia spirale","Chioma di Berenice",10.5,{"$f":"VLOOKUP(E34,Costellazioni!A:E,2,FALSE)","v":"Equatoriale"},{"$f":"VLOOKUP(E34,Costellazioni!A:E,3,FALSE)","v":"2014-05-02"},{"$f":"VLOOKUP(E34,Costellazioni!A:E,4,FALSE)","v":"Primavera"}]
["M53","NGC 5024",null,"Ammasso globulare","Chioma di Berenice",8.5,{"$f":"VLOOKUP(E35,Costellazioni!A:E,2,FALSE)","v":"Equatoriale"},{"$f":"VLOOKUP(E35,Costellazioni!A:E,3,FALSE)","v":"2014-05-02"},{"$f":"VLOOKUP(E35,Costellazioni!A:E,4,FALSE)","v":"Primavera"}]
["M64","NGC 4826","Galassia Occhio Nero","Galassia spirale","Chioma di Berenice",9,{"$f":"VLOOKUP(E36,Costellazioni!A:E,2,FALSE)","v":"Equatoriale"},{"$f":"VLOOKUP(E36,Costellazioni!A:E,3,FALSE)","v":"2014-05-02"},{"$f":"VLOOKUP(E36,Costellazioni!A:E,4,FALSE)","v":"Primavera"}]
["M85","NGC 4382",null,"Galassia lenticolare","Chioma di Berenice",10.5,{"$f":"VLOOKUP(E37,Costellazioni!A:E,2,FALSE)","v":"Equatoriale"},{"$f":"VLOOKUP(E37,Costellazioni!A:E,3,FALSE)","v":"2014-05-02"},{"$f":"VLOOKUP(E37,Costellazioni!A:E,4,FALSE)","v":"Primavera"}]
["M88","NGC 4501",null,"Galassia spirale","Chioma di Berenice",11,{"$f":"VLOOKUP(E38,Costellazioni!A:E,2,FALSE)","v":"Equatoriale"},{"$f":"VLOOKUP(E38,Costellazioni!A:E,3,FALSE)","v":"2014-05-02"},{"$f":"VLOOKUP(E38,Costellazioni!A:E,4,FALSE)","v":"Primavera"}]
["M91","NGC 4548",null,"Galassia spirale","Chioma di Berenice",11.5,{"$f":"VLOOKUP(E39,Costellazioni!A:E,2,FALSE)","v":"Equatoriale"},{"$f":"VLOOKUP(E39,Costellazioni!A:E,3,FALSE)","v":"2014-05-02"},{"$f":"VLOOKUP(E39,Costellazioni!A:E,4,FALSE)","v":"Primavera"}]
["M98","NGC 4192",null,"Galassia spirale","Chioma di Berenice",11,{"$f":"VLOOKUP(E40,Costellazioni!A:E,2,FALSE)","v":"Equatoriale"},{"$f":"VLOOKUP(E40,Costellazioni!A:E,3,FALSE)","v":"2014-05-02"},{"$f":"VLOOKUP(E40,Costellazioni!A:E,4,FALSE)","v":"Primavera"}]
["M99","NGC 4254",null,"Galassia spirale","Chioma di Berenice",10.5,{"$f":"VLOOKUP(E41,Costellazioni!A:E,2,FALSE)","v":"Equatoriale"},{"$f":"VLOOKUP(E41,Costellazioni!A:E,3,FALSE)","v":"2014-05-02"},{"$f":"VLOOKUP(E41,Costellazioni!A:E,4,FALSE)","v":"Primavera"}]
["M106","NGC 4258",null,"Galassia spirale","Cani da Caccia",9.5,{"$f":"VLOOKUP(E42,Costellazioni!A:E,2,FALSE)","v":"Boreale"},{"$f":"VLOOKUP(E42,Costellazioni!A:E,3,FALSE)","v":"2014-05-07"},{"$f":"VLOOKUP(E42,Costellazioni!A:E,4,FALSE)","v":"Primavera"}]
["M3","NGC 5272",null,"Ammasso globulare","Cani da Caccia",7,{"$f":"VLOOKUP(E43,Costellazioni!A:E,2,FALSE)","v":"Boreale"},{"$f":"VLOOKUP(E43,Costellazioni!A:E,3,FALSE)","v":"2014-05-07"},{"$f":"VLOOKUP(E43,Costellazioni!A:E,4,FALSE)","v":"Primavera"}]
["M51","NGC 5194","Galassia Vortice","Galassia spirale","Cani da Caccia",8,{"$f":"VLOOKUP(E44,Costellazioni!A:E,2,FALSE)","v":"Boreale"},{"$f":"VLOOKUP(E44,Costellazioni!A:E,3,FALSE)","v":"2014-05-07"},{"$f":"VLOOKUP(E44,Costellazioni!A:E,4,FALSE)","v":"Primavera"}]
["M63","NGC 5055","Galassia Girasole","Galassia spirale","Cani da Caccia",8.5,{"$f":"VLOOKUP(E45,Costellazioni!A:E,2,FALSE)","v":"Boreale"},{"$f":"VLOOKUP(E45,Costellazioni!A:E,3,FALSE)","v":"2014-05-07"},{"$f":"VLOOKUP(E45,Costellazioni!A:E,4,FALSE)","v":"Primavera"}]
["M94","NGC 4736",null,"Galassia spirale","Cani da Caccia",9.5,{"$f":"VLOOKUP(E46,Costellazioni!A:E,2,FALSE)","v":"Boreale"},{"$f":"VLOOKUP(E46,Costellazioni!A:E,3,FALSE)","v":"2014-05-07"},{"$f":"VLOOKUP(E46,Costellazioni!A:E,4,FALSE)","v":"Primavera"}]
["M104","NGC 4594","Galassia Sombrero","Galassia spirale","Vergine",9.5,{"$f":"VLOOKUP(E47,Costellazioni!A:E,2,FALSE)","v":"Equatoriale"},{"$f":"VLOOKUP(E47,Costellazioni!A:E,3,FALSE)","v":"2014-05-10"},{"$f":"VLOOKUP(E47,Costellazioni!A:E,4,FALSE)","v":"Primavera"}]
["M49","NGC 4472",null,"Galassia ellittica","Vergine",10,{"$f":"VLOOKUP(E48,Costellazioni!A:E,2,FALSE)","v":"Equatoriale"},{"$f":"VLOOKUP(E48,Costellazioni!A:E,3,FALSE)","v":"2014-05-10"},{"$f":"VLOOKUP(E48,Costellazioni!A:E,4,FALSE)","v":"Primavera"}]
["M58","NGC 4579",null,"Galassia spirale barrata ","Vergine",11,{"$f":"VLOOKUP(E49,Costellazioni!A:E,2,FALSE)","v":"Equatoriale"},{"$f":"VLOOKUP(E49,Costellazioni!A:E,3,FALSE)","v":"2014-05-10"},{"$f":"VLOOKUP(E49,Costellazioni!A:E,4,FALSE)","v":"Primavera"}]
["M59","NGC 4621",null,"Galassia ellittica","Vergine",11.5,{"$f":"VLOOKUP(E50,Costellazioni!A:E,2,FALSE)","v":"Equatoriale"},{"$f":"VLOOKUP(E50,Costellazioni!A:E,3,FALSE)","v":"2014-05-10"},{"$f":"VLOOKUP(E50,Costellazioni!A:E,4,FALSE)","v":"Primavera"}]
["M60","NGC 4649",null,"Galassia ellittica","Vergine",10.5,{"$f":"VLOOKUP(E51,Costellazioni!A:E,2,FALSE)","v":"Equatoriale"},{"$f":"VLOOKUP(E51,Costellazioni!A:E,3,FALSE)","v":"2014-05-10"},{"$f":"VLOOKUP(E51,Costellazioni!A:E,4,FALSE)","v":"Primavera"}]
["M61","NGC 4303",null,"Galassia spirale","Vergine",10.5,{"$f":"VLOOKUP(E52,Costellazioni!A:E,2,FALSE)","v":"Equatoriale"},{"$f":"VLOOKUP(E52,Costellazioni!A:E,3,FALSE)","v":"2014-05-10"},{"$f":"VLOOKUP(E52,Costellazioni!A:E,4,FALSE)","v":"Primavera"}]
["M84","NGC 4374",null,"Galassia lenticolare","Vergine",11,{"$f":"VLOOKUP(E53,Costellazioni!A:E,2,FALSE)","v":"Equatoriale"},{"$f":"VLOOKUP(E53,Costellazioni!A:E,3,FALSE)","v":"2014-05-10"},{"$f":"VLOOKUP(E53,Costellazioni!A:E,4,FALSE)","v":"Primavera"}]
["M86","NGC 4406",null,"Galassia lenticolare","Vergine",11,{"$f":"VLOOKUP(E54,Costellazioni!A:E,2,FALSE)","v":"Equatoriale"},{"$f":"VLOOKUP(E54,Costellazioni!A:E,3,FALSE)","v":"2014-05-10"},{"$f":"VLOOKUP(E54,Costellazioni!A:E,4,FALSE)","v":"Primavera"}]
["M87","NGC 4486","Galassia Virgo A","Galassia ellittica","Vergine",11,{"$f":"VLOOKUP(E55,Costellazioni!A:E,2,FALSE)","v":"Equatoriale"},{"$f":"VLOOKUP(E55,Costellazioni!A:E,3,FALSE)","v":"2014-05-10"},{"$f":"VLOOKUP(E55,Costellazioni!A:E,4,FALSE)","v":"Primavera"}]
["M89","NGC 4552",null,"Galassia ellittica","Vergine",11.5,{"$f":"VLOOKUP(E56,Costellazioni!A:E,2,FALSE)","v":"Equatoriale"},{"$f":"VLOOKUP(E56,Costellazioni!A:E,3,FALSE)","v":"2014-05-10"},{"$f":"VLOOKUP(E56,Costellazioni!A:E,4,FALSE)","v":"Primavera"}]
["M90","NGC 4569",null,"Galassia spirale","Vergine",11,{"$f":"VLOOKUP(E57,Costellazioni!A:E,2,FALSE)","v":"Equatoriale"},{"$f":"VLOOKUP(E57,Costellazioni!A:E,3,FALSE)","v":"2014-05-10"},{"$f":"VLOOKUP(E57,Costellazioni!A:E,4,FALSE)","v":"Primavera"}]
["M102","Nessuno","Galassia Fuso","Galassia lenticolare","Dragone",10.5,{"$f":"VLOOKUP(E58,Costellazioni!A:E,2,FALSE)","v":"Boreale"},{"$f":"VLOOKUP(E58,Costellazioni!A:E,3,FALSE)","v":"2014-05-25"},{"$f":"VLOOKUP(E58,Costellazioni!A:E,4,FALSE)","v":"Primavera"}]
["M13","NGC 6205","Ammasso Globulare di Ercole","Ammasso globulare","Ercole",5.8,{"$f":"VLOOKUP(E59,Costellazioni!A:E,2,FALSE)","v":"Boreale"},{"$f":"VLOOKUP(E59,Costellazioni!A:E,3,FALSE)","v":"2014-06-13"},{"$f":"VLOOKUP(E59,Costellazioni!A:E,4,FALSE)","v":"Primavera"}]
["M92","NGC 6341",null,"Ammasso globulare","Ercole",7.5,{"$f":"VLOOKUP(E60,Costellazioni!A:E,2,FALSE)","v":"Boreale"},{"$f":"VLOOKUP(E60,Costellazioni!A:E,3,FALSE)","v":"2014-06-13"},{"$f":"VLOOKUP(E60,Costellazioni!A:E,4,FALSE)","v":"Primavera"}]
["M16","NGC 6611","Ammasso della Nebulosa Aquila","Ammasso con nebulosa","Serpente",6.5,{"$f":"VLOOKUP(E61,Costellazioni!A:E,2,FALSE)","v":"Equatoriale"},{"$f":"VLOOKUP(E61,Costellazioni!A:E,3,FALSE)","v":"2014-07-01"},{"$f":"VLOOKUP(E61,Costellazioni!A:E,4,FALSE)","v":"Estate"}]
["M5","NGC 5904",null,"Ammasso globulare","Serpente",7,{"$f":"VLOOKUP(E62,Costellazioni!A:E,2,FALSE)","v":"Equatoriale"},{"$f":"VLOOKUP(E62,Costellazioni!A:E,3,FALSE)","v":"2014-07-01"},{"$f":"VLOOKUP(E62,Costellazioni!A:E,4,FALSE)","v":"Estate"}]
["M4","NGC 6121",null,"Ammasso globulare","Scorpione",7.5,{"$f":"VLOOKUP(E63,Costellazioni!A:E,2,FALSE)","v":"Equatoriale"},{"$f":"VLOOKUP(E63,Costellazioni!A:E,3,FALSE)","v":"2014-07-03"},{"$f":"VLOOKUP(E63,Costellazioni!A:E,4,FALSE)","v":"Estate"}]
["M6","NGC 6405","Ammasso della Farfalla","Ammasso aperto","Scorpione",4.5,{"$f":"VLOOKUP(E64,Costellazioni!A:E,2,FALSE)","v":"Equatoriale"},{"$f":"VLOOKUP(E64,Costellazioni!A:E,3,FALSE)","v":"2014-07-03"},{"$f":"VLOOKUP(E64,Costellazioni!A:E,4,FALSE)","v":"Estate"}]
["M7","NGC 6475","Ammasso di Tolomeo","Ammasso aperto","Scorpione",3.5,{"$f":"VLOOKUP(E65,Costellazioni!A:E,2,FALSE)","v":"Equatoriale"},{"$f":"VLOOKUP(E65,Costellazioni!A:E,3,FALSE)","v":"2014-07-03"},{"$f":"VLOOKUP(E65,Costellazioni!A:E,4,FALSE)","v":"Estate"}]
["M80","NGC 6093",null,"Ammasso globulare","Scorpione",8.5,{"$f":"VLOOKUP(E66,Costellazioni!A:E,2,FALSE)","v":"Equatoriale"},{"$f":"VLOOKUP(E66,Costellazioni!A:E,3,FALSE)","v":"2014-07-03"},{"$f":"VLOOKUP(E66,Costellazioni!A:E,4,FALSE)","v":"Estate"}]
["M10","NGC 6254",null,"Ammasso globulare","Ofiuco",7.5,{"$f":"VLOOKUP(E67,Costellazioni!A:E,2,FALSE)","v":"Equatoriale"},{"$f":"VLOOKUP(E67,Costellazioni!A:E,3,FALSE)","v":"2014-07-10"},{"$f":"VLOOKUP(E67,Costellazioni!A:E,4,FALSE)","v":"Estate"}]
["M107","NGC 6171",null,"Ammasso globulare","Ofiuco",10,{"$f":"VLOOKUP(E68,Costellazioni!A:E,2,FALSE)","v":"Equatoriale"},{"$f":"VLOOKUP(E68,Costellazioni!A:E,3,FALSE)","v":"2014-07-10"},{"$f":"VLOOKUP(E68,Costellazioni!A:E,4,FALSE)","v":"Estate"}]
["M12","NGC 6218",null,"Ammasso globulare","Ofiuco",8,{"$f":"VLOOKUP(E69,Costellazioni!A:E,2,FALSE)","v":"Equatoriale"},{"$f":"VLOOKUP(E69,Costellazioni!A:E,3,FALSE)","v":"2014-07-10"},{"$f":"VLOOKUP(E69,Costellazioni!A:E,4,FALSE)","v":"Estate"}]
["M14","NGC 6402",null,"Ammasso globulare","Ofiuco",9.5,{"$f":"VLOOKUP(E70,Costellazioni!A:E,2,FALSE)","v":"Equatoriale"},{"$f":"VLOOKUP(E70,Costellazioni!A:E,3,FALSE)","v":"2014-07-10"},{"$f":"VLOOKUP(E70,Costellazioni!A:E,4,FALSE)","v":"Estate"}]
["M19","NGC 6273",null,"Ammasso globulare","Ofiuco",8.5,{"$f":"VLOOKUP(E71,Costellazioni!A:E,2,FALSE)","v":"Equatoriale"},{"$f":"VLOOKUP(E71,Costellazioni!A:E,3,FALSE)","v":"2014-07-10"},{"$f":"VLOOKUP(E71,Costellazioni!A:E,4,FALSE)","v":"Estate"}]
["M62","NGC 6266",null,"Ammasso globulare","Ofiuco",8,{"$f":"VLOOKUP(E72,Costellazioni!A:E,2,FALSE)","v":"Equatoriale"},{"$f":"VLOOKUP(E72,Costellazioni!A:E,3,FALSE)","v":"2014-07-10"},{"$f":"VLOOKUP(E72,Costellazioni!A:E,4,FALSE)","v":"Estate"}]
["M9","NGC 6333",null,"Ammasso globulare","Ofiuco",9,{"$f":"VLOOKUP(E73,Costellazioni!A:E,2,FALSE)","v":"Equatoriale"},{"$f":"VLOOKUP(E73,Costellazioni!A:E,3,FALSE)","v":"2014-07-10"},{"$f":"VLOOKUP(E73,Costellazioni!A:E,4,FALSE)","v":"Estate"}]
["M11","NGC 6705","Ammasso dell'Anitra Selvatica ","Ammasso aperto","Scudo",7,{"$f":"VLOOKUP(E74,Costellazioni!A:E,2,FALSE)","v":"Equatoriale"},{"$f":"VLOOKUP(E74,Costellazioni!A:E,3,FALSE)","v":"2014-08-01"},{"$f":"VLOOKUP(E74,Costellazioni!A:E,4,FALSE)","v":"Estate"}]
["M26","NGC 6694",null,"Ammasso aperto","Scudo",9.5,{"$f":"VLOOKUP(E75,Costellazioni!A:E,2,FALSE)","v":"Equatoriale"},{"$f":"VLOOKUP(E75,Costellazioni!A:E,3,FALSE)","v":"2014-08-01"},{"$f":"VLOOKUP(E75,Costellazioni!A:E,4,FALSE)","v":"Estate"}]
["M56","NGC 6779",null,"Ammasso globulare","Lira",9.5,{"$f":"VLOOKUP(E76,Costellazioni!A:E,2,FALSE)","v":"Boreale"},{"$f":"VLOOKUP(E76,Costellazioni!A:E,3,FALSE)","v":"2014-08-01"},{"$f":"VLOOKUP(E76,Costellazioni!A:E,4,FALSE)","v":"Estate"}]
["M57","NGC 6720","Nebulosa Anello","Nebulosa planetaria","Lira",9.5,{"$f":"VLOOKUP(E77,Costellazioni!A:E,2,FALSE)","v":"Boreale"},{"$f":"VLOOKUP(E77,Costellazioni!A:E,3,FALSE)","v":"2014-08-01"},{"$f":"VLOOKUP(E77,Costellazioni!A:E,4,FALSE)","v":"Estate"}]
["M17","NGC 6618","Nebulosa Omega","Ammasso con nebulosa","Sagittario",7,{"$f":"VLOOKUP(E78,Costellazioni!A:E,2,FALSE)","v":"Equatoriale"},{"$f":"VLOOKUP(E78,Costellazioni!A:E,3,FALSE)","v":"2014-08-10"},{"$f":"VLOOKUP(E78,Costellazioni!A:E,4,FALSE)","v":"Estate"}]
["M18","NGC 6613",null,"Ammasso aperto","Sagittario",8,{"$f":"VLOOKUP(E79,Costellazioni!A:E,2,FALSE)","v":"Equatoriale"},{"$f":"VLOOKUP(E79,Costellazioni!A:E,3,FALSE)","v":"2014-08-10"},{"$f":"VLOOKUP(E79,Costellazioni!A:E,4,FALSE)","v":"Estate"}]
["M20","NGC 6514","Nebulosa Trifida","Ammasso con nebulosa","Sagittario",5,{"$f":"VLOOKUP(E80,Costellazioni!A:E,2,FALSE)","v":"Equatoriale"},{"$f":"VLOOKUP(E80,Costellazioni!A:E,3,FALSE)","v":"2014-08-10"},{"$f":"VLOOKUP(E80,Costellazioni!A:E,4,FALSE)","v":"Estate"}]
["M21","NGC 6531",null,"Ammasso aperto","Sagittario",7,{"$f":"VLOOKUP(E81,Costellazioni!A:E,2,FALSE)","v":"Equatoriale"},{"$f":"VLOOKUP(E81,Costellazioni!A:E,3,FALSE)","v":"2014-08-10"},{"$f":"VLOOKUP(E81,Costellazioni!A:E,4,FALSE)","v":"Estate"}]
["M22","NGC 6656",null,"Ammasso globulare","Sagittario",6.5,{"$f":"VLOOKUP(E82,Costellazioni!A:E,2,FALSE)","v":"Equatoriale"},{"$f":"VLOOKUP(E82,Costellazioni!A:E,3,FALSE)","v":"2014-08-10"},{"$f":"VLOOKUP(E82,Costellazioni!A:E,4,FALSE)","v":"Estate"}]
["M23","NGC 6494",null,"Ammasso aperto","Sagittario",6,{"$f":"VLOOKUP(E83,Costellazioni!A:E,2,FALSE)","v":"Equatoriale"},{"$f":"VLOOKUP(E83,Costellazioni!A:E,3,FALSE)","v":"2014-08-10"},{"$f":"VLOOKUP(E83,Costellazioni!A:E,4,FALSE)","v":"Estate"}]
["M24","NGC 6603",null,"Asterismo","Sagittario",3,{"$f":"VLOOKUP(E84,Costellazioni!A:E,2,FALSE)","v":"Equatoriale"},{"$f":"VLOOKUP(E84,Costellazioni!A:E,3,FALSE)","v":"2014-08-10"},{"$f":"VLOOKUP(E84,Costellazioni!A:E,4,FALSE)","v":"Estate"}]
["M25","Nessuno",null,"Ammasso aperto","Sagittario",4.9000000000000004,{"$f":"VLOOKUP(E85,Costellazioni!A:E,2,FALSE)","v":"Equatoriale"},{"$f":"VLOOKUP(E85,Costellazioni!A:E,3,FALSE)","v":"2014-08-10"},{"$f":"VLOOKUP(E85,Costellazioni!A:E,4,FALSE)","v":"Estate"}]
["M28","NGC 6626",null,"Ammasso globulare","Sagittario",8.5,{"$f":"VLOOKUP(E86,Costellazioni!A:E,2,FALSE)","v":"Equatoriale"},{"$f":"VLOOKUP(E86,Costellazioni!A:E,3,FALSE)","v":"2014-08-10"},{"$f":"VLOOKUP(E86,Costellazioni!A:E,4,FALSE)","v":"Estate"}]
["M54","NGC 6715",null,"Ammasso globulare","Sagittario",8.5,{"$f":"VLOOKUP(E87,Costellazioni!A:E,2,FALSE)","v":"Equatoriale"},{"$f":"VLOOKUP(E87,Costellazioni!A:E,3,FALSE)","v":"2014-08-10"},{"$f":"VLOOKUP(E87,Costellazioni!A:E,4,FALSE)","v":"Estate"}]
["M55","NGC 6809",null,"Ammasso globulare","Sagittario",7,{"$f":"VLOOKUP(E88,Costellazioni!A:E,2,FALSE)","v":"Equatoriale"},{"$f":"VLOOKUP(E88,Costellazioni!A:E,3,FALSE)","v":"2014-08-10"},{"$f":"VLOOKUP(E88,Costellazioni!A:E,4,FALSE)","v":"Estate"}]
["M69","NGC 6637",null,"Ammasso globulare","Sagittario",9,{"$f":"VLOOKUP(E89,Costellazioni!A:E,2,FALSE)","v":"Equatoriale"},{"$f":"VLOOKUP(E89,Costellazioni!A:E,3,FALSE)","v":"2014-08-10"},{"$f":"VLOOKUP(E89,Costellazioni!A:E,4,FALSE)","v":"Estate"}]
["M70","NGC 6681",null,"Ammasso globulare","Sagittario",9,{"$f":"VLOOKUP(E90,Costellazioni!A:E,2,FALSE)","v":"Equatoriale"},{"$f":"VLOOKUP(E90,Costellazioni!A:E,3,FALSE)","v":"2014-08-10"},{"$f":"VLOOKUP(E90,Costellazioni!A:E,4,FALSE)","v":"Estate"}]
["M75","NGC 6864",null,"Ammasso globulare","Sagittario",9.5,{"$f":"VLOOKUP(E91,Costellazioni!A:E,2,FALSE)","v":"Equatoriale"},{"$f":"VLOOKUP(E91,Costellazioni!A:E,3,FALSE)","v":"2014-08-10"},{"$f":"VLOOKUP(E91,Costellazioni!A:E,4,FALSE)","v":"Estate"}]
["M8","NGC 6523","Nebulosa Laguna","Ammasso con nebulosa","Sagittario",5,{"$f":"VLOOKUP(E92,Costellazioni!A:E,2,FALSE)","v":"Equatoriale"},{"$f":"VLOOKUP(E92,Costellazioni!A:E,3,FALSE)","v":"2014-08-10"},{"$f":"VLOOKUP(E92,Costellazioni!A:E,4,FALSE)","v":"Estate"}]
["M71","NGC 6838",null,"Ammasso globulare","Freccia",8.5,{"$f":"VLOOKUP(E93,Costellazioni!A:E,2,FALSE)","v":"Equatoriale"},{"$f":"VLOOKUP(E93,Costellazioni!A:E,3,FALSE)","v":"2014-08-15"},{"$f":"VLOOKUP(E93,Costellazioni!A:E,4,FALSE)","v":"Estate"}]
["M29","NGC 6913",null,"Ammasso aperto","Cigno",9,{"$f":"VLOOKUP(E94,Costellazioni!A:E,2,FALSE)","v":"Boreale"},{"$f":"VLOOKUP(E94,Costellazioni!A:E,3,FALSE)","v":"2014-08-20"},{"$f":"VLOOKUP(E94,Costellazioni!A:E,4,FALSE)","v":"Estate"}]
["M39","NGC 7092",null,"Ammasso aperto","Cigno",5.5,{"$f":"VLOOKUP(E95,Costellazioni!A:E,2,FALSE)","v":"Boreale"},{"$f":"VLOOKUP(E95,Costellazioni!A:E,3,FALSE)","v":"2014-08-20"},{"$f":"VLOOKUP(E95,Costellazioni!A:E,4,FALSE)","v":"Estate"}]
["M27","NGC 6853","Nebulosa Manubrio","Nebulosa planetaria","Volpetta",7.5,{"$f":"VLOOKUP(E96,Costellazioni!A:E,2,FALSE)","v":"Equatoriale"},{"$f":"VLOOKUP(E96,Costellazioni!A:E,3,FALSE)","v":"2014-08-25"},{"$f":"VLOOKUP(E96,Costellazioni!A:E,4,FALSE)","v":"Estate"}]
["M30","NGC 7099",null,"Ammasso globulare","Capricorno",8.5,{"$f":"VLOOKUP(E97,Costellazioni!A:E,2,FALSE)","v":"Equatoriale"},{"$f":"VLOOKUP(E97,Costellazioni!A:E,3,FALSE)","v":"2014-09-08"},{"$f":"VLOOKUP(E97,Costellazioni!A:E,4,FALSE)","v":"Estate"}]
["M2","NGC 7089",null,"Ammasso globulare","Acquario",7.5,{"$f":"VLOOKUP(E98,Costellazioni!A:E,2,FALSE)","v":"Equatoriale"},{"$f":"VLOOKUP(E98,Costellazioni!A:E,3,FALSE)","v":"2014-09-25"},{"$f":"VLOOKUP(E98,Costellazioni!A:E,4,FALSE)","v":"Autunno"}]
["M72","NGC 6981",null,"Ammasso globulare","Acquario",10,{"$f":"VLOOKUP(E99,Costellazioni!A:E,2,FALSE)","v":"Equatoriale"},{"$f":"VLOOKUP(E99,Costellazioni!A:E,3,FALSE)","v":"2014-09-25"},{"$f":"VLOOKUP(E99,Costellazioni!A:E,4,FALSE)","v":"Autunno"}]
["M73","NGC 6994","Asterismo dell'Aquario","Asterismo","Acquario",9,{"$f":"VLOOKUP(E100,Costellazioni!A:E,2,FALSE)","v":"Equatoriale"},{"$f":"VLOOKUP(E100,Costellazioni!A:E,3,FALSE)","v":"2014-09-25"},{"$f":"VLOOKUP(E100,Costellazioni!A:E,4,FALSE)","v":"Autunno"}]
["M15","NGC 7078",null,"Ammasso globulare","Pegaso",7.5,{"$f":"VLOOKUP(E101,Costellazioni!A:E,2,FALSE)","v":"Equatoriale"},{"$f":"VLOOKUP(E101,Costellazioni!A:E,3,FALSE)","v":"2014-10-01"},{"$f":"VLOOKUP(E101,Costellazioni!A:E,4,FALSE)","v":"Autunno"}]
["M74","NGC 628",null,"Galassia spirale","Pesci",10.5,{"$f":"VLOOKUP(E102,Costellazioni!A:E,2,FALSE)","v":"Equatoriale"},{"$f":"VLOOKUP(E102,Costellazioni!A:E,3,FALSE)","v":"2014-10-25"},{"$f":"VLOOKUP(E102,Costellazioni!A:E,4,FALSE)","v":"Autunno"}]
["M103","NGC 581",null,"Ammasso aperto","Cassiopea",7,{"$f":"VLOOKUP(E103,Costellazioni!A:E,2,FALSE)","v":"Boreale"},{"$f":"VLOOKUP(E103,Costellazioni!A:E,3,FALSE)","v":"2014-11-09"},{"$f":"VLOOKUP(E103,Costellazioni!A:E,4,FALSE)","v":"Autunno"}]
["M52","NGC 7654",null,"Ammasso aperto","Cassiopea",8,{"$f":"VLOOKUP(E104,Costellazioni!A:E,2,FALSE)","v":"Boreale"},{"$f":"VLOOKUP(E104,Costellazioni!A:E,3,FALSE)","v":"2014-11-09"},{"$f":"VLOOKUP(E104,Costellazioni!A:E,4,FALSE)","v":"Autunno"}]
["M110","NGC 205",null,"Galassia ellittica","Andromeda",10,{"$f":"VLOOKUP(E105,Costellazioni!A:E,2,FALSE)","v":"Boreale"},{"$f":"VLOOKUP(E105,Costellazioni!A:E,3,FALSE)","v":"2014-11-10"},{"$f":"VLOOKUP(E105,Costellazioni!A:E,4,FALSE)","v":"Autunno"}]
["M31","NGC 224","Galassia di Andromeda","Galassia spirale","Andromeda",4.5,{"$f":"VLOOKUP(E106,Costellazioni!A:E,2,FALSE)","v":"Boreale"},{"$f":"VLOOKUP(E106,Costellazioni!A:E,3,FALSE)","v":"2014-11-10"},{"$f":"VLOOKUP(E106,Costellazioni!A:E,4,FALSE)","v":"Autunno"}]
["M32","NGC 221",null,"Galassia ellittica nana","Andromeda",10,{"$f":"VLOOKUP(E107,Costellazioni!A:E,2,FALSE)","v":"Boreale"},{"$f":"VLOOKUP(E107,Costellazioni!A:E,3,FALSE)","v":"2014-11-10"},{"$f":"VLOOKUP(E107,Costellazioni!A:E,4,FALSE)","v":"Autunno"}]
["M77","NGC 1068",null,"Galassia spirale","Balena",10.5,{"$f":"VLOOKUP(E108,Costellazioni!A:E,2,FALSE)","v":"Equatoriale"},{"$f":"VLOOKUP(E108,Costellazioni!A:E,3,FALSE)","v":"2014-11-10"},{"$f":"VLOOKUP(E108,Costellazioni!A:E,4,FALSE)","v":"Autunno"}]
["M33","NGC 598","Galassia del Triangolo","Galassia spirale","Triangolo",7,{"$f":"VLOOKUP(E109,Costellazioni!A:E,2,FALSE)","v":"Boreale"},{"$f":"VLOOKUP(E109,Costellazioni!A:E,3,FALSE)","v":"2014-11-25"},{"$f":"VLOOKUP(E109,Costellazioni!A:E,4,FALSE)","v":"Autunno"}]
["M34","NGC 1039",null,"Ammasso aperto","Perseo",6,{"$f":"VLOOKUP(E110,Costellazioni!A:E,2,FALSE)","v":"Boreale"},{"$f":"VLOOKUP(E110,Costellazioni!A:E,3,FALSE)","v":"2014-12-10"},{"$f":"VLOOKUP(E110,Costellazioni!A:E,4,FALSE)","v":"Autunno"}]
["M76","NGC 650","Piccola Campana Muta","Nebulosa planetaria","Perseo",12,{"$f":"VLOOKUP(E111,Costellazioni!A:E,2,FALSE)","v":"Boreale"},{"$f":"VLOOKUP(E111,Costellazioni!A:E,3,FALSE)","v":"2014-12-10"},{"$f":"VLOOKUP(E111,Costellazioni!A:E,4,FALSE)","v":"Autunno"}]

{"sheet":"Caldwell","index":2,"n_rows":110,"n_cols":13,"rows_kept":110,"cut":false,"hidden":false,"merged":[]}
["CATALOGO","NGC","Nome comune","Tipo di oggetto","Costellazione"," M.A. ","Zona","Culmine","Stagione","Dim [arcsec]","A. R. [H.m.]","Dec. [° ']",{"$f":"TODAY()","v":"2014-06-27"}]
["C41","MELOTTE 25","THE HYDES","Ammasso aperto","Toro","0.5",{"$f":"VLOOKUP(E2,Costellazioni!A:E,2,FALSE)","v":"Equatoriale"},{"$f":"VLOOKUP(E2,Costellazioni!A:E,3,FALSE)","v":"2014-01-01"},{"$f":"VLOOKUP(E2,Costellazioni!A:E,4,FALSE)","v":"Inverno"},330,"04 27","+ 16 00"]
["C73","NGC 1851",null,"Ammasso globulare","Colomba","7.1",{"$f":"VLOOKUP(E3,Costellazioni!A:E,2,FALSE)","v":"Australe"},{"$f":"VLOOKUP(E3,Costellazioni!A:E,3,FALSE)","v":"2014-01-16"},{"$f":"VLOOKUP(E3,Costellazioni!A:E,4,FALSE)","v":"Inverno"},11,"05 41","- 40 03"]
["C103","NGC 2070","NEBULOSA TARANTOLA","Nebulosa","Dorado",8,{"$f":"VLOOKUP(E4,Costellazioni!A:E,2,FALSE)","v":"Australe"},{"$f":"VLOOKUP(E4,Costellazioni!A:E,3,FALSE)","v":"2014-01-16"},{"$f":"VLOOKUP(E4,Costellazioni!A:E,4,FALSE)","v":"Inverno"},"40 x 25","05 38","- 69 05"]
["C31","IC 405","FLAMING STAR NEBULA","Nebulosa a emissione","Auriga","10.0",{"$f":"VLOOKUP(E5,Costellazioni!A:E,2,FALSE)","v":"Boreale"},{"$f":"VLOOKUP(E5,Costellazioni!A:E,3,FALSE)","v":"2014-01-20"},{"$f":"VLOOKUP(E5,Costellazioni!A:E,4,FALSE)","v":"Inverno"},"10 x 30","05 16","+ 34 16"]
["C5","IC 342",null,"Galassia spirale","Giraffa","9.1",{"$f":"VLOOKUP(E6,Costellazioni!A:E,2,FALSE)","v":"Boreale"},{"$f":"VLOOKUP(E6,Costellazioni!A:E,3,FALSE)","v":"2014-01-23"},{"$f":"VLOOKUP(E6,Costellazioni!A:E,4,FALSE)","v":"Inverno"},"21.4 x 20.9","03 46","+ 68 05"]
["C7","NGC 2403",null,"Galassia spirale","Giraffa","8.9",{"$f":"VLOOKUP(E7,Costellazioni!A:E,2,FALSE)","v":"Boreale"},{"$f":"VLOOKUP(E7,Costellazioni!A:E,3,FALSE)","v":"2014-01-23"},{"$f":"VLOOKUP(E7,Costellazioni!A:E,4,FALSE)","v":"Inverno"},"21.9 x 12.3","07 36","+ 65 36"]
["C58","NGC 2360",null,"Ammasso aperto","Cane Maggiore","7.2",{"$f":"VLOOKUP(E8,Costellazioni!A:E,2,FALSE)","v":"Equatoriale"},{"$f":"VLOOKUP(E8,Costellazioni!A:E,3,FALSE)","v":"2014-02-01"},{"$f":"VLOOKUP(E8,Costellazioni!A:E,4,FALSE)","v":"Inverno"},13,"07 17","- 17 37"]
["C64","NGC 2362",null,"Ammasso aperto","Cane Maggiore","4.1",{"$f":"VLOOKUP(E9,Costellazioni!A:E,2,FALSE)","v":"Equatoriale"},{"$f":"VLOOKUP(E9,Costellazioni!A:E,3,FALSE)","v":"2014-02-01"},{"$f":"VLOOKUP(E9,Costellazioni!A:E,4,FALSE)","v":"Inverno"},8,"07 18","- 24 57"]
["C39","NGC 2392","ESKIMO GALAXI","Nebulosa planetaria","Gemelli","10.1",{"$f":"VLOOKUP(E10,Costellazioni!A:E,2,FALSE)","v":"Equatoriale"},{"$f":"VLOOKUP(E10,Costellazioni!A:E,3,FALSE)","v":"2014-02-05"},{"$f":"VLOOKUP(E10,Costellazioni!A:E,4,FALSE)","v":"Inverno"},"48 x 48","07 29","+ 20 54"]
["C46","NGC 2261","HUBBLE'S VARIABLE NEBULA","Nebulosa a riflessione","Unicorno",9,{"$f":"VLOOKUP(E11,Costellazioni!A:E,2,FALSE)","v":"Equatoriale"},{"$f":"VLOOKUP(E11,Costellazioni!A:E,3,FALSE)","v":"2014-02-05"},{"$f":"VLOOKUP(E11,Costellazioni!A:E,4,FALSE)","v":"Inverno"},"2 x 1","06 39","+ 08 44"]
["C49","NGC 2237-9","NEBULOSA ROSETTA","Nebulosa diffusa","Unicorno","4.8",{"$f":"VLOOKUP(E12,Costellazioni!A:E,2,FALSE)","v":"Equatoriale"},{"$f":"VLOOKUP(E12,Costellazioni!A:E,3,FALSE)","v":"2014-02-05"},{"$f":"VLOOKUP(E12,Costellazioni!A:E,4,FALSE)","v":"Inverno"},"80 x 60","06 32","+ 05 03"]
["C50","NGC 2244",null,"Ammasso aperto","Unicorno","4.8",{"$f":"VLOOKUP(E13,Costellazioni!A:E,2,FALSE)","v":"Equatoriale"},{"$f":"VLOOKUP(E13,Costellazioni!A:E,3,FALSE)","v":"2014-02-05"},{"$f":"VLOOKUP(E13,Costellazioni!A:E,4,FALSE)","v":"Inverno"},24,"06 31","+ 04 57"]
["C54","NGC 2506",null,"Ammasso aperto","Unicorno","7.6",{"$f":"VLOOKUP(E14,Costellazioni!A:E,2,FALSE)","v":"Equatoriale"},{"$f":"VLOOKUP(E14,Costellazioni!A:E,3,FALSE)","v":"2014-02-05"},{"$f":"VLOOKUP(E14,Costellazioni!A:E,4,FALSE)","v":"Inverno"},8,"08 00","- 10 56"]
["C37","NGC 6885",null,"Ammasso aperto","Pesce volante","8.2",{"$f":"VLOOKUP(E15,Costellazioni!A:E,2,FALSE)","v":"Australe"},{"$f":"VLOOKUP(E15,Costellazioni!A:E,3,FALSE)","v":"2014-02-17"},{"$f":"VLOOKUP(E15,Costellazioni!A:E,4,FALSE)","v":"Inverno"},18,"20 12","+ 26 29"]
["C71","NGC 2477",null,"Ammasso aperto","Poppa","5.8",{"$f":"VLOOKUP(E16,Costellazioni!A:E,2,FALSE)","v":"Australe"},{"$f":"VLOOKUP(E16,Costellazioni!A:E,3,FALSE)","v":"2014-02-17"},{"$f":"VLOOKUP(E16,Costellazioni!A:E,4,FALSE)","v":"Inverno"},27,"07 52","- 38 33"]
["C25","NGC 2419",null,"Ammasso globulare","Lince","9.06",{"$f":"VLOOKUP(E17,Costellazioni!A:E,2,FALSE)","v":"Boreale"},{"$f":"VLOOKUP(E17,Costellazioni!A:E,3,FALSE)","v":"2014-02-19"},{"$f":"VLOOKUP(E17,Costellazioni!A:E,4,FALSE)","v":"Inverno"},6,"07 38","+ 38 53"]
["C90","NGC 2867",null,"Nebulosa planetaria","Carena","9.7",{"$f":"VLOOKUP(E18,Costellazioni!A:E,2,FALSE)","v":"Australe"},{"$f":"VLOOKUP(E18,Costellazioni!A:E,3,FALSE)","v":"2014-03-02"},{"$f":"VLOOKUP(E18,Costellazioni!A:E,4,FALSE)","v":"Inverno"},12,"09 21","- 58 18"]
["C91","NGC 3532","AMMASSO POZZO DEI DESIDERI","Ammasso aperto","Carena","3.0",{"$f":"VLOOKUP(E19,Costellazioni!A:E,2,FALSE)","v":"Australe"},{"$f":"VLOOKUP(E19,Costellazioni!A:E,3,FALSE)","v":"2014-03-02"},{"$f":"VLOOKUP(E19,Costellazioni!A:E,4,FALSE)","v":"Inverno"},50,"11 06","- 58 40"]
["C92","NGC 3372","NEBULOSA DELLA CARENA","Nebulosa a emissione","Carena","3.0",{"$f":"VLOOKUP(E20,Costellazioni!A:E,2,FALSE)","v":"Australe"},{"$f":"VLOOKUP(E20,Costellazioni!A:E,3,FALSE)","v":"2014-03-02"},{"$f":"VLOOKUP(E20,Costellazioni!A:E,4,FALSE)","v":"Inverno"},"120 x 120","10 45","- 58 52"]
["C96","NGC 2516",null,"Ammasso aperto","Carena","3.3",{"$f":"VLOOKUP(E21,Costellazioni!A:E,2,FALSE)","v":"Australe"},{"$f":"VLOOKUP(E21,Costellazioni!A:E,3,FALSE)","v":"2014-03-02"},{"$f":"VLOOKUP(E21,Costellazioni!A:E,4,FALSE)","v":"Inverno"},30,"07 58","- 60 48"]
["C102","IC 2602","PLEIADI DEL SUD","Ammasso con nebulosa","Carena","1.9",{"$f":"VLOOKUP(E22,Costellazioni!A:E,2,FALSE)","v":"Australe"},{"$f":"VLOOKUP(E22,Costellazioni!A:E,3,FALSE)","v":"2014-03-02"},{"$f":"VLOOKUP(E22,Costellazioni!A:E,4,FALSE)","v":"Inverno"},50,"10 43","- 64 20"]
["C74","NGC 3132","NEBULOSA ANELLO DEL SUD","Nebulosa planetaria","Vele","9.9",{"$f":"VLOOKUP(E23,Costellazioni!A:E,2,FALSE)","v":"Australe"},{"$f":"VLOOKUP(E23,Costellazioni!A:E,3,FALSE)","v":"2014-03-15"},{"$f":"VLOOKUP(E23,Costellazioni!A:E,4,FALSE)","v":"Inverno"},"84 x 53","10 07","- 40 26"]
["C79","NGC 3201",null,"Ammasso globulare","Vele","6.8",{"$f":"VLOOKUP(E24,Costellazioni!A:E,2,FALSE)","v":"Australe"},{"$f":"VLOOKUP(E24,Costellazioni!A:E,3,FALSE)","v":"2014-03-15"},{"$f":"VLOOKUP(E24,Costellazioni!A:E,4,FALSE)","v":"Inverno"},18,"10 17","- 46 25"]
["C85","IC 2391",null,"Ammasso aperto","Vele","2.6",{"$f":"VLOOKUP(E25,Costellazioni!A:E,2,FALSE)","v":"Australe"},{"$f":"VLOOKUP(E25,Costellazioni!A:E,3,FALSE)","v":"2014-03-15"},{"$f":"VLOOKUP(E25,Costellazioni!A:E,4,FALSE)","v":"Inverno"},50,"08 40","- 53 04"]
["C53","NGC 3115","GALASSIA FUSO","Galassia lenticolare","Sestante","9.9",{"$f":"VLOOKUP(E26,Costellazioni!A:E,2,FALSE)","v":"Equatoriale"},{"$f":"VLOOKUP(E26,Costellazioni!A:E,3,FALSE)","v":"2014-03-22"},{"$f":"VLOOKUP(E26,Costellazioni!A:E,4,FALSE)","v":"Primavera"},"7.6 x 2.52","10 05","- 07 43"]
["C109","NGC 3195",null,"Nebulosa planetaria","Camaleonte","11.5",{"$f":"VLOOKUP(E27,Costellazioni!A:E,2,FALSE)","v":"Australe"},{"$f":"VLOOKUP(E27,Costellazioni!A:E,3,FALSE)","v":"2014-03-30"},{"$f":"VLOOKUP(E27,Costellazioni!A:E,4,FALSE)","v":"Primavera"},"40 x 30","10 09","- 80 51"]
["C40","NGC 3626",null,"Galassia spirale","Leone","10.9",{"$f":"VLOOKUP(E28,Costellazioni!A:E,2,FALSE)","v":"Equatoriale"},{"$f":"VLOOKUP(E28,Costellazioni!A:E,3,FALSE)","v":"2014-04-01"},{"$f":"VLOOKUP(E28,Costellazioni!A:E,4,FALSE)","v":"Primavera"},"2.7 x 1.9","11 20","+ 18 21"]
["C59","NGC 3242","SPETTRO DI GIOVE","Nebulosa planetaria","Idra","8.6",{"$f":"VLOOKUP(E29,Costellazioni!A:E,2,FALSE)","v":"Equatoriale"},{"$f":"VLOOKUP(E29,Costellazioni!A:E,3,FALSE)","v":"2014-04-15"},{"$f":"VLOOKUP(E29,Costellazioni!A:E,4,FALSE)","v":"Primavera"},25,"10 24","- 18 38"]
["C66","NGC 5694",null,"Ammasso globulare","Idra","9.0",{"$f":"VLOOKUP(E30,Costellazioni!A:E,2,FALSE)","v":"Equatoriale"},{"$f":"VLOOKUP(E30,Costellazioni!A:E,3,FALSE)","v":"2014-04-15"},{"$f":"VLOOKUP(E30,Costellazioni!A:E,4,FALSE)","v":"Primavera"},"3.6","14 39","- 26 32"]
["C60","NGC 4038","GALASSIA AD ANTENNE","Galassia irregolare","Corvo","11.1",{"$f":"VLOOKUP(E31,Costellazioni!A:E,2,FALSE)","v":"Equatoriale"},{"$f":"VLOOKUP(E31,Costellazioni!A:E,3,FALSE)","v":"2014-04-20"},{"$f":"VLOOKUP(E31,Costellazioni!A:E,4,FALSE)","v":"Primavera"},"5.2x3.1x3.1","13 01","- 18 52"]
["C61","NGC 4039","GALASSIA AD ANTENNE","Galassia irregolare","Corvo","11.1",{"$f":"VLOOKUP(E32,Costellazioni!A:E,2,FALSE)","v":"Equatoriale"},{"$f":"VLOOKUP(E32,Costellazioni!A:E,3,FALSE)","v":"2014-04-20"},{"$f":"VLOOKUP(E32,Costellazioni!A:E,4,FALSE)","v":"Primavera"},"5.2x3.1x3.1","13 01","- 18 52"]
["C94","NGC 4755","SCRIGNO DI GIOIE","Ammasso aperto","Croce del Sud","4.2",{"$f":"VLOOKUP(E33,Costellazioni!A:E,2,FALSE)","v":"Australe"},{"$f":"VLOOKUP(E33,Costellazioni!A:E,3,FALSE)","v":"2014-04-27"},{"$f":"VLOOKUP(E33,Costellazioni!A:E,4,FALSE)","v":"Primavera"},10,"12 43","- 60 20"]
["C98","NGC 4609",null,"Ammasso aperto","Croce del Sud","6.9",{"$f":"VLOOKUP(E34,Costellazioni!A:E,2,FALSE)","v":"Australe"},{"$f":"VLOOKUP(E34,Costellazioni!A:E,3,FALSE)","v":"2014-04-27"},{"$f":"VLOOKUP(E34,Costellazioni!A:E,4,FALSE)","v":"Primavera"},5,"12 43","- 63 00"]
["C99","N. C.","COALSACK DARK NEBULA","Nebulosa","Croce del Sud","N.C.",{"$f":"VLOOKUP(E35,Costellazioni!A:E,2,FALSE)","v":"Australe"},{"$f":"VLOOKUP(E35,Costellazioni!A:E,3,FALSE)","v":"2014-04-27"},{"$f":"VLOOKUP(E35,Costellazioni!A:E,4,FALSE)","v":"Primavera"},"7 x 5","12 50","- 62 30"]
["C77","NGC 5128","CENTAURUS A","Galassia peculiare","Centauro","7.0",{"$f":"VLOOKUP(E36,Costellazioni!A:E,2,FALSE)","v":"Australe"},{"$f":"VLOOKUP(E36,Costellazioni!A:E,3,FALSE)","v":"2014-04-30"},{"$f":"VLOOKUP(E36,Costellazioni!A:E,4,FALSE)","v":"Primavera"},"18 x 14","13 25","- 43 01"]
["C80","NGC 5139",null,"Ammasso globulare","Centauro","3.7",{"$f":"VLOOKUP(E37,Costellazioni!A:E,2,FALSE)","v":"Australe"},{"$f":"VLOOKUP(E37,Costellazioni!A:E,3,FALSE)","v":"2014-04-30"},{"$f":"VLOOKUP(E37,Costellazioni!A:E,4,FALSE)","v":"Primavera"},"36.3","13 26","- 47 29"]
["C83","NGC 4945",null,"Galassia spirale barrata ","Centauro","8.9",{"$f":"VLOOKUP(E38,Costellazioni!A:E,2,FALSE)","v":"Australe"},{"$f":"VLOOKUP(E38,Costellazioni!A:E,3,FALSE)","v":"2014-04-30"},{"$f":"VLOOKUP(E38,Costellazioni!A:E,4,FALSE)","v":"Primavera"},"20.0 x 3.8","13 05","- 49 28"]
["C84","NGC 5286",null,"Ammasso globulare","Centauro","7.6",{"$f":"VLOOKUP(E39,Costellazioni!A:E,2,FALSE)","v":"Australe"},{"$f":"VLOOKUP(E39,Costellazioni!A:E,3,FALSE)","v":"2014-04-30"},{"$f":"VLOOKUP(E39,Costellazioni!A:E,4,FALSE)","v":"Primavera"},9,"13 46","- 51 22"]
["C97","NGC 3766",null,"Ammasso aperto","Centauro","5.3",{"$f":"VLOOKUP(E40,Costellazioni!A:E,2,FALSE)","v":"Australe"},{"$f":"VLOOKUP(E40,Costellazioni!A:E,3,FALSE)","v":"2014-04-30"},{"$f":"VLOOKUP(E40,Costellazioni!A:E,4,FALSE)","v":"Primavera"},12,"11 36","- 61 37"]
["C100","IC 2944","RUNNING CHICKEN DARK NEBULA","Ammasso con nebulosa","Centauro","4.5",{"$f":"VLOOKUP(E41,Costellazioni!A:E,2,FALSE)","v":"Australe"},{"$f":"VLOOKUP(E41,Costellazioni!A:E,3,FALSE)","v":"2014-04-30"},{"$f":"VLOOKUP(E41,Costellazioni!A:E,4,FALSE)","v":"Primavera"},75,"11 36","- 63 02"]
["C105","NGC 4833",null,"Ammasso globulare","Mosca","6.9",{"$f":"VLOOKUP(E42,Costellazioni!A:E,2,FALSE)","v":"Australe"},{"$f":"VLOOKUP(E42,Costellazioni!A:E,3,FALSE)","v":"2014-04-30"},{"$f":"VLOOKUP(E42,Costellazioni!A:E,4,FALSE)","v":"Primavera"},"13.5","12 59","- 70 53"]
["C108","NGC 4372",null,"Ammasso globulare","Mosca","7.8",{"$f":"VLOOKUP(E43,Costellazioni!A:E,2,FALSE)","v":"Australe"},{"$f":"VLOOKUP(E43,Costellazioni!A:E,3,FALSE)","v":"2014-04-30"},{"$f":"VLOOKUP(E43,Costellazioni!A:E,4,FALSE)","v":"Primavera"},"18.6","12 25","- 72 40"]
["C35","NGC 4889",null,"Galassia ellittica","Chioma di Berenice","11.4",{"$f":"VLOOKUP(E44,Costellazioni!A:E,2,FALSE)","v":"Equatoriale"},{"$f":"VLOOKUP(E44,Costellazioni!A:E,3,FALSE)","v":"2014-05-02"},{"$f":"VLOOKUP(E44,Costellazioni!A:E,4,FALSE)","v":"Primavera"},"1.49 x 17.8","13 00","+ 27 58"]
["C36","NGC 4559",null,"Galassia spirale","Chioma di Berenice","9.8",{"$f":"VLOOKUP(E45,Costellazioni!A:E,2,FALSE)","v":"Equatoriale"},{"$f":"VLOOKUP(E45,Costellazioni!A:E,3,FALSE)","v":"2014-05-02"},{"$f":"VLOOKUP(E45,Costellazioni!A:E,4,FALSE)","v":"Primavera"},"10.7 x 4.4","12 36","+ 27 58"]
["C38","NGC 4565","NEEDLE GALAXI","Galassia spirale","Chioma di Berenice","9.7",{"$f":"VLOOKUP(E46,Costellazioni!A:E,2,FALSE)","v":"Equatoriale"},{"$f":"VLOOKUP(E46,Costellazioni!A:E,3,FALSE)","v":"2014-05-02"},{"$f":"VLOOKUP(E46,Costellazioni!A:E,4,FALSE)","v":"Primavera"},"15.8 x 2.1","12 36","+ 26 00"]
["C21","NGC 4449",null,"Galassia irregolare","Cani da Caccia","9.8",{"$f":"VLOOKUP(E47,Costellazioni!A:E,2,FALSE)","v":"Boreale"},{"$f":"VLOOKUP(E47,Costellazioni!A:E,3,FALSE)","v":"2014-05-07"},{"$f":"VLOOKUP(E47,Costellazioni!A:E,4,FALSE)","v":"Primavera"},"6.2 x 4.4","12 28","+ 44 06"]
["C26","NGC 4244",null,"Galassia spirale","Cani da Caccia","10.0",{"$f":"VLOOKUP(E48,Costellazioni!A:E,2,FALSE)","v":"Boreale"},{"$f":"VLOOKUP(E48,Costellazioni!A:E,3,FALSE)","v":"2014-05-07"},{"$f":"VLOOKUP(E48,Costellazioni!A:E,4,FALSE)","v":"Primavera"},"16.6 x 1.9","12 17","+ 37 48"]
["C29","NGC 5005",null,"Galassia spirale","Cani da Caccia","10.3",{"$f":"VLOOKUP(E49,Costellazioni!A:E,2,FALSE)","v":"Boreale"},{"$f":"VLOOKUP(E49,Costellazioni!A:E,3,FALSE)","v":"2014-05-07"},{"$f":"VLOOKUP(E49,Costellazioni!A:E,4,FALSE)","v":"Primavera"},"5.8 x 2.8","13 10","+ 37 04"]
["C32","NGC 4631",null,"Galassia spirale","Cani da Caccia","9.1",{"$f":"VLOOKUP(E50,Costellazioni!A:E,2,FALSE)","v":"Boreale"},{"$f":"VLOOKUP(E50,Costellazioni!A:E,3,FALSE)","v":"2014-05-07"},{"$f":"VLOOKUP(E50,Costellazioni!A:E,4,FALSE)","v":"Primavera"},"15.5 x 2.7","12 42","+ 32 32"]
["C48","NGC 2775",null,"Galassia spirale","Cani da Caccia","10.3",{"$f":"VLOOKUP(E51,Costellazioni!A:E,2,FALSE)","v":"Boreale"},{"$f":"VLOOKUP(E51,Costellazioni!A:E,3,FALSE)","v":"2014-05-07"},{"$f":"VLOOKUP(E51,Costellazioni!A:E,4,FALSE)","v":"Primavera"},"4.3 x 3.3","09 10","+ 07 02"]
["C52","NGC 4697",null,"Galassia ellittica","Vergine","9.2",{"$f":"VLOOKUP(E52,Costellazioni!A:E,2,FALSE)","v":"Equatoriale"},{"$f":"VLOOKUP(E52,Costellazioni!A:E,3,FALSE)","v":"2014-05-10"},{"$f":"VLOOKUP(E52,Costellazioni!A:E,4,FALSE)","v":"Primavera"},"7.2 x 4.7","12 48","- 05 48"]
["C3","NGC 4236",null,"Galassia spirale barrata ","Dragone","9.9",{"$f":"VLOOKUP(E53,Costellazioni!A:E,2,FALSE)","v":"Boreale"},{"$f":"VLOOKUP(E53,Costellazioni!A:E,3,FALSE)","v":"2014-05-25"},{"$f":"VLOOKUP(E53,Costellazioni!A:E,4,FALSE)","v":"Primavera"},"21.9 x 7.2","12 16","+ 69 27"]
["C6","NGC 6543","NEBULOSA OCCHI DI GATTO","Nebulosa planetaria","Dragone","9.8",{"$f":"VLOOKUP(E54,Costellazioni!A:E,2,FALSE)","v":"Boreale"},{"$f":"VLOOKUP(E54,Costellazioni!A:E,3,FALSE)","v":"2014-05-25"},{"$f":"VLOOKUP(E54,Costellazioni!A:E,4,FALSE)","v":"Primavera"},"20.2","17 58","+ 66 37"]
["C88","NGC 5823",null,"Ammasso aperto","Compasso","7.9",{"$f":"VLOOKUP(E55,Costellazioni!A:E,2,FALSE)","v":"Australe"},{"$f":"VLOOKUP(E55,Costellazioni!A:E,3,FALSE)","v":"2014-05-29"},{"$f":"VLOOKUP(E55,Costellazioni!A:E,4,FALSE)","v":"Primavera"},10,"15 05","- 55 36"]
["C45","NGC 5248",null,"Galassia spirale barrata ","Boote","10.0",{"$f":"VLOOKUP(E56,Costellazioni!A:E,2,FALSE)","v":"Equatoriale"},{"$f":"VLOOKUP(E56,Costellazioni!A:E,3,FALSE)","v":"2014-06-02"},{"$f":"VLOOKUP(E56,Costellazioni!A:E,4,FALSE)","v":"Primavera"},"6.2 x 4.5","17 37","+ 08 53"]
["C81","NGC 6352",null,"Ammasso globulare","Altare","7.8",{"$f":"VLOOKUP(E57,Costellazioni!A:E,2,FALSE)","v":"Australe"},{"$f":"VLOOKUP(E57,Costellazioni!A:E,3,FALSE)","v":"2014-06-10"},{"$f":"VLOOKUP(E57,Costellazioni!A:E,4,FALSE)","v":"Primavera"},"7.1","17 25","- 48 25"]
["C82","NGC 6193",null,"Ammasso aperto","Altare","5.2",{"$f":"VLOOKUP(E58,Costellazioni!A:E,2,FALSE)","v":"Australe"},{"$f":"VLOOKUP(E58,Costellazioni!A:E,3,FALSE)","v":"2014-06-10"},{"$f":"VLOOKUP(E58,Costellazioni!A:E,4,FALSE)","v":"Primavera"},14,"16 41","- 48 46"]
["C86","NGC 6397",null,"Ammasso globulare","Altare","5.3",{"$f":"VLOOKUP(E59,Costellazioni!A:E,2,FALSE)","v":"Australe"},{"$f":"VLOOKUP(E59,Costellazioni!A:E,3,FALSE)","v":"2014-06-10"},{"$f":"VLOOKUP(E59,Costellazioni!A:E,4,FALSE)","v":"Primavera"},"25.7","17 40","- 53 40"]
["C89","NGC 6067",null,"Ammasso aperto","Regolo","5.6",{"$f":"VLOOKUP(E60,Costellazioni!A:E,2,FALSE)","v":"Australe"},{"$f":"VLOOKUP(E60,Costellazioni!A:E,3,FALSE)","v":"2014-06-18"},{"$f":"VLOOKUP(E60,Costellazioni!A:E,4,FALSE)","v":"Primavera"},12,"16 13","- 54 13"]
["C107","NGC 6101",null,"Ammasso globulare","Uccello del paradiso","9.2",{"$f":"VLOOKUP(E61,Costellazioni!A:E,2,FALSE)","v":"Australe"},{"$f":"VLOOKUP(E61,Costellazioni!A:E,3,FALSE)","v":"2014-06-20"},{"$f":"VLOOKUP(E61,Costellazioni!A:E,4,FALSE)","v":"Primavera"},"10.7","16 25","- 72 12"]
["C95","NGC 6025",null,"Ammasso aperto","Triangolo Australe","5.1",{"$f":"VLOOKUP(E62,Costellazioni!A:E,2,FALSE)","v":"Australe"},{"$f":"VLOOKUP(E62,Costellazioni!A:E,3,FALSE)","v":"2014-06-22"},{"$f":"VLOOKUP(E62,Costellazioni!A:E,4,FALSE)","v":"Estate"},12,"16 03","- 60 30"]
["C69","NGC 6302","NEBULOSA FARFALLA","Nebulosa planetaria","Scorpione","7.1",{"$f":"VLOOKUP(E63,Costellazioni!A:E,2,FALSE)","v":"Equatoriale"},{"$f":"VLOOKUP(E63,Costellazioni!A:E,3,FALSE)","v":"2014-07-03"},{"$f":"VLOOKUP(E63,Costellazioni!A:E,4,FALSE)","v":"Estate"},3,"17 13","- 37 06"]
["C75","NGC 6124",null,"Ammasso aperto","Scorpione","5.8",{"$f":"VLOOKUP(E64,Costellazioni!A:E,2,FALSE)","v":"Equatoriale"},{"$f":"VLOOKUP(E64,Costellazioni!A:E,3,FALSE)","v":"2014-07-03"},{"$f":"VLOOKUP(E64,Costellazioni!A:E,4,FALSE)","v":"Estate"},40,"16 25","- 40 39"]
["C76","NGC 6231",null,"Ammasso aperto","Scorpione","2.6",{"$f":"VLOOKUP(E65,Costellazioni!A:E,2,FALSE)","v":"Equatoriale"},{"$f":"VLOOKUP(E65,Costellazioni!A:E,3,FALSE)","v":"2014-07-03"},{"$f":"VLOOKUP(E65,Costellazioni!A:E,4,FALSE)","v":"Estate"},15,"16 54","- 41 49"]
["C68","NGC 6729",null,"Nebulosa a riflessione","Corona Australe","9.5",{"$f":"VLOOKUP(E66,Costellazioni!A:E,2,FALSE)","v":"Australe"},{"$f":"VLOOKUP(E66,Costellazioni!A:E,3,FALSE)","v":"2014-07-30"},{"$f":"VLOOKUP(E66,Costellazioni!A:E,4,FALSE)","v":"Estate"},25,"19 01","- 36 57"]
["C78","NGC 6541",null,"Ammasso globulare","Corona Australe","6.3",{"$f":"VLOOKUP(E67,Costellazioni!A:E,2,FALSE)","v":"Australe"},{"$f":"VLOOKUP(E67,Costellazioni!A:E,3,FALSE)","v":"2014-07-30"},{"$f":"VLOOKUP(E67,Costellazioni!A:E,4,FALSE)","v":"Estate"},13,"18 08","- 43 43"]
["C57","NGC 6822","GALASSIA DI BARNARD","Galassia irregolare","Sagittario","9.3",{"$f":"VLOOKUP(E68,Costellazioni!A:E,2,FALSE)","v":"Equatoriale"},{"$f":"VLOOKUP(E68,Costellazioni!A:E,3,FALSE)","v":"2014-08-10"},{"$f":"VLOOKUP(E68,Costellazioni!A:E,4,FALSE)","v":"Estate"},"15.5 x 13.5","19 44","- 14 47"]
["C93","NGC 6752",null,"Ammasso globulare","Pavone",20,{"$f":"VLOOKUP(E69,Costellazioni!A:E,2,FALSE)","v":"Australe"},{"$f":"VLOOKUP(E69,Costellazioni!A:E,3,FALSE)","v":"2014-08-14"},{"$f":"VLOOKUP(E69,Costellazioni!A:E,4,FALSE)","v":"Estate"},20,"19 10","- 59 59"]
["C101","NGC 6744",null,"Galassia spirale barrata ","Pavone","8.8",{"$f":"VLOOKUP(E70,Costellazioni!A:E,2,FALSE)","v":"Australe"},{"$f":"VLOOKUP(E70,Costellazioni!A:E,3,FALSE)","v":"2014-08-14"},{"$f":"VLOOKUP(E70,Costellazioni!A:E,4,FALSE)","v":"Estate"},"20 x 13","19 09","- 63 51"]
["C12","NGC 6946",null,"Galassia spirale","Cigno","8.9",{"$f":"VLOOKUP(E71,Costellazioni!A:E,2,FALSE)","v":"Boreale"},{"$f":"VLOOKUP(E71,Costellazioni!A:E,3,FALSE)","v":"2014-08-20"},{"$f":"VLOOKUP(E71,Costellazioni!A:E,4,FALSE)","v":"Estate"},"11 x 10","20 34","+ 60 09"]
["C15","NGC 6826","NEBULOSA OCCHIOLINO","Nebulosa planetaria","Cigno","8.8",{"$f":"VLOOKUP(E72,Costellazioni!A:E,2,FALSE)","v":"Boreale"},{"$f":"VLOOKUP(E72,Costellazioni!A:E,3,FALSE)","v":"2014-08-20"},{"$f":"VLOOKUP(E72,Costellazioni!A:E,4,FALSE)","v":"Estate"},"27 x 24","19 44","+ 50 31"]
["C19","IC 5146","COCOON NEBULA","Nebulosa diffusa","Cigno",10,{"$f":"VLOOKUP(E73,Costellazioni!A:E,2,FALSE)","v":"Boreale"},{"$f":"VLOOKUP(E73,Costellazioni!A:E,3,FALSE)","v":"2014-08-20"},{"$f":"VLOOKUP(E73,Costellazioni!A:E,4,FALSE)","v":"Estate"},30,"21 53","+ 47 16"]
["C20","NGC 7000","NEBULOSA NORD AMERICA","Nebulosa a emissione","Cigno","6.0",{"$f":"VLOOKUP(E74,Costellazioni!A:E,2,FALSE)","v":"Boreale"},{"$f":"VLOOKUP(E74,Costellazioni!A:E,3,FALSE)","v":"2014-08-20"},{"$f":"VLOOKUP(E74,Costellazioni!A:E,4,FALSE)","v":"Estate"},240,"21 59","+ 44 31"]
["C27","NGC 6888","NEBULOSA CRESCENTE","Resto di supernova","Cigno","10.0",{"$f":"VLOOKUP(E75,Costellazioni!A:E,2,FALSE)","v":"Boreale"},{"$f":"VLOOKUP(E75,Costellazioni!A:E,3,FALSE)","v":"2014-08-20"},{"$f":"VLOOKUP(E75,Costellazioni!A:E,4,FALSE)","v":"Estate"},"20 x 10","20 12","+ 38 21"]
["C33","NGC 6992/5","CIRRUS NEBULA","Resto di supernova","Cigno","7.0",{"$f":"VLOOKUP(E76,Costellazioni!A:E,2,FALSE)","v":"Boreale"},{"$f":"VLOOKUP(E76,Costellazioni!A:E,3,FALSE)","v":"2014-08-20"},{"$f":"VLOOKUP(E76,Costellazioni!A:E,4,FALSE)","v":"Estate"},3,"20 45","+ 30 42"]
["C34","NGC 6960","WESTERN VEIL","Resto di supernova","Cigno","7.0",{"$f":"VLOOKUP(E77,Costellazioni!A:E,2,FALSE)","v":"Boreale"},{"$f":"VLOOKUP(E77,Costellazioni!A:E,3,FALSE)","v":"2014-08-20"},{"$f":"VLOOKUP(E77,Costellazioni!A:E,4,FALSE)","v":"Estate"},3,"20 45","+ 30 42"]
["C42","NGC 7006","VERY DISTANT GLOBULAR","Ammasso globulare","Delfino","10.6",{"$f":"VLOOKUP(E78,Costellazioni!A:E,2,FALSE)","v":"Equatoriale"},{"$f":"VLOOKUP(E78,Costellazioni!A:E,3,FALSE)","v":"2014-08-31"},{"$f":"VLOOKUP(E78,Costellazioni!A:E,4,FALSE)","v":"Estate"},"2.8","21 10","+ 16 11"]
["C47","NGC 6934",null,"Ammasso globulare","Delfino","9.8",{"$f":"VLOOKUP(E79,Costellazioni!A:E,2,FALSE)","v":"Equatoriale"},{"$f":"VLOOKUP(E79,Costellazioni!A:E,3,FALSE)","v":"2014-08-31"},{"$f":"VLOOKUP(E79,Costellazioni!A:E,4,FALSE)","v":"Estate"},"8.4","20 34","+ 07 24"]
["C16","NGC 7243",null,"Ammasso aperto","Lucertola","6.4",{"$f":"VLOOKUP(E80,Costellazioni!A:E,2,FALSE)","v":"Boreale"},{"$f":"VLOOKUP(E80,Costellazioni!A:E,3,FALSE)","v":"2014-09-25"},{"$f":"VLOOKUP(E80,Costellazioni!A:E,4,FALSE)","v":"Autunno"},"21.0","22 15","+ 49 54"]
["C55","NGC 7009","NEBULOSA SATURNO","Nebulosa planetaria","Acquario","12.8",{"$f":"VLOOKUP(E81,Costellazioni!A:E,2,FALSE)","v":"Equatoriale"},{"$f":"VLOOKUP(E81,Costellazioni!A:E,3,FALSE)","v":"2014-09-25"},{"$f":"VLOOKUP(E81,Costellazioni!A:E,4,FALSE)","v":"Autunno"},25,"21 04","- 11 21"]
["C63","NGC 7293","NEBULOSA ELICA","Nebulosa planetaria","Acquario","13.51",{"$f":"VLOOKUP(E82,Costellazioni!A:E,2,FALSE)","v":"Equatoriale"},{"$f":"VLOOKUP(E82,Costellazioni!A:E,3,FALSE)","v":"2014-09-25"},{"$f":"VLOOKUP(E82,Costellazioni!A:E,4,FALSE)","v":"Autunno"},25,"22 29","- 20 50"]
["C30","NGC 7331",null,"Galassia spirale","Pegaso","10.4",{"$f":"VLOOKUP(E83,Costellazioni!A:E,2,FALSE)","v":"Equatoriale"},{"$f":"VLOOKUP(E83,Costellazioni!A:E,3,FALSE)","v":"2014-10-01"},{"$f":"VLOOKUP(E83,Costellazioni!A:E,4,FALSE)","v":"Autunno"},"10.5 x 3.7","22 37","+ 37 24"]
["C43","NGC 7814",null,"Galassia spirale","Pegaso","11.8",{"$f":"VLOOKUP(E84,Costellazioni!A:E,2,FALSE)","v":"Equatoriale"},{"$f":"VLOOKUP(E84,Costellazioni!A:E,3,FALSE)","v":"2014-10-01"},{"$f":"VLOOKUP(E84,Costellazioni!A:E,4,FALSE)","v":"Autunno"},"5.5 x 2.3","00 03","+ 12 80"]
["C44","NGC 7479",null,"Galassia spirale barrata ","Pegaso","11.6",{"$f":"VLOOKUP(E85,Costellazioni!A:E,2,FALSE)","v":"Equatoriale"},{"$f":"VLOOKUP(E85,Costellazioni!A:E,3,FALSE)","v":"2014-10-01"},{"$f":"VLOOKUP(E85,Costellazioni!A:E,4,FALSE)","v":"Autunno"},"4.1 x 3.1","23 04","+ 12 19"]
["C104","NGC 362",null,"Ammasso globulare","Tucano","6.8",{"$f":"VLOOKUP(E86,Costellazioni!A:E,2,FALSE)","v":"Australe"},{"$f":"VLOOKUP(E86,Costellazioni!A:E,3,FALSE)","v":"2014-10-16"},{"$f":"VLOOKUP(E86,Costellazioni!A:E,4,FALSE)","v":"Autunno"},14,"01 03","- 70 51"]
["C106","NGC 104","TUCANAE","Ammasso globulare","Tucano","4.9",{"$f":"VLOOKUP(E87,Costellazioni!A:E,2,FALSE)","v":"Australe"},{"$f":"VLOOKUP(E87,Costellazioni!A:E,3,FALSE)","v":"2014-10-16"},{"$f":"VLOOKUP(E87,Costellazioni!A:E,4,FALSE)","v":"Autunno"},60,"00 24","- 72 24"]
["C65","NGC 253","GALASSIA DELLO SCULTORE","Galassia irregolare","Scultore","7.8",{"$f":"VLOOKUP(E88,Costellazioni!A:E,2,FALSE)","v":"Australe"},{"$f":"VLOOKUP(E88,Costellazioni!A:E,3,FALSE)","v":"2014-10-25"},{"$f":"VLOOKUP(E88,Costellazioni!A:E,4,FALSE)","v":"Autunno"},"27.5 x 6.8","00 47",-2517]
["C70","NGC 300",null,"Galassia spirale","Scultore","8.3",{"$f":"VLOOKUP(E89,Costellazioni!A:E,2,FALSE)","v":"Australe"},{"$f":"VLOOKUP(E89,Costellazioni!A:E,3,FALSE)","v":"2014-10-25"},{"$f":"VLOOKUP(E89,Costellazioni!A:E,4,FALSE)","v":"Autunno"},"21.9 x 15.5","00 54","- 37 41"]
["C72","NGC 55",null,"Galassia irregolare","Scultore","8.3",{"$f":"VLOOKUP(E90,Costellazioni!A:E,2,FALSE)","v":"Australe"},{"$f":"VLOOKUP(E90,Costellazioni!A:E,3,FALSE)","v":"2014-10-25"},{"$f":"VLOOKUP(E90,Costellazioni!A:E,4,FALSE)","v":"Autunno"},"32.4 x 5.6","00 51","- 39 13"]
["C1","NGC 188",null,"Ammasso aperto","Cefeo","8.1",{"$f":"VLOOKUP(E91,Costellazioni!A:E,2,FALSE)","v":"Boreale"},{"$f":"VLOOKUP(E91,Costellazioni!A:E,3,FALSE)","v":"2014-10-29"},{"$f":"VLOOKUP(E91,Costellazioni!A:E,4,FALSE)","v":"Autunno"},"13.1","00 37","+ 85 14"]
["C2","NGC 40",null,"Nebulosa planetaria","Cefeo","12.3",{"$f":"VLOOKUP(E92,Costellazioni!A:E,2,FALSE)","v":"Boreale"},{"$f":"VLOOKUP(E92,Costellazioni!A:E,3,FALSE)","v":"2014-10-29"},{"$f":"VLOOKUP(E92,Costellazioni!A:E,4,FALSE)","v":"Autunno"},"11 x 35","00 13","+ 72 31"]
["C4","NGC 7023","NEBULOSA IRIDE","Nebulosa","Cefeo","7.7",{"$f":"VLOOKUP(E93,Costellazioni!A:E,2,FALSE)","v":"Boreale"},{"$f":"VLOOKUP(E93,Costellazioni!A:E,3,FALSE)","v":"2014-10-29"},{"$f":"VLOOKUP(E93,Costellazioni!A:E,4,FALSE)","v":"Autunno"},"10 x 8","21 00","+ 68 10"]
["C9","SH2-155","NEBULOSA GROTTA","Nebulosa","Cefeo",10,{"$f":"VLOOKUP(E94,Costellazioni!A:E,2,FALSE)","v":"Boreale"},{"$f":"VLOOKUP(E94,Costellazioni!A:E,3,FALSE)","v":"2014-10-29"},{"$f":"VLOOKUP(E94,Costellazioni!A:E,4,FALSE)","v":"Autunno"},"50 x 30","22 57","+ 62 28"]
["C8","NGC 559",null,"Ammasso aperto","Cassiopea","9.5",{"$f":"VLOOKUP(E95,Costellazioni!A:E,2,FALSE)","v":"Boreale"},{"$f":"VLOOKUP(E95,Costellazioni!A:E,3,FALSE)","v":"2014-11-09"},{"$f":"VLOOKUP(E95,Costellazioni!A:E,4,FALSE)","v":"Autunno"},"4.4","21 29","+ 63 18"]
["C10","NGC 663",null,"Ammasso aperto","Cassiopea","7.1",{"$f":"VLOOKUP(E96,Costellazioni!A:E,2,FALSE)","v":"Boreale"},{"$f":"VLOOKUP(E96,Costellazioni!A:E,3,FALSE)","v":"2014-11-09"},{"$f":"VLOOKUP(E96,Costellazioni!A:E,4,FALSE)","v":"Autunno"},"16.0","01 46","+ 61 13"]
["C11","NGC 7635","NEBULOSA BOLLA","Nebulosa a emissione","Cassiopea",11,{"$f":"VLOOKUP(E97,Costellazioni!A:E,2,FALSE)","v":"Boreale"},{"$f":"VLOOKUP(E97,Costellazioni!A:E,3,FALSE)","v":"2014-11-09"},{"$f":"VLOOKUP(E97,Costellazioni!A:E,4,FALSE)","v":"Autunno"},"15 x 8","23 20","+ 61 12"]
["C13","NGC 457","AMMASSO CIVETTA","Ammasso aperto","Cassiopea","6.4",{"$f":"VLOOKUP(E98,Costellazioni!A:E,2,FALSE)","v":"Boreale"},{"$f":"VLOOKUP(E98,Costellazioni!A:E,3,FALSE)","v":"2014-11-09"},{"$f":"VLOOKUP(E98,Costellazioni!A:E,4,FALSE)","v":"Autunno"},13,"01 19","+ 58 17"]
["C17","NGC 147",null,"Galassia nana sferoidale","Cassiopea","9.5",{"$f":"VLOOKUP(E99,Costellazioni!A:E,2,FALSE)","v":"Boreale"},{"$f":"VLOOKUP(E99,Costellazioni!A:E,3,FALSE)","v":"2014-11-09"},{"$f":"VLOOKUP(E99,Costellazioni!A:E,4,FALSE)","v":"Autunno"},"15 x 9","00 33","+ 48 31"]
["C18","NGC 185",null,"Galassia ellittica","Cassiopea","9.2",{"$f":"VLOOKUP(E100,Costellazioni!A:E,2,FALSE)","v":"Boreale"},{"$f":"VLOOKUP(E100,Costellazioni!A:E,3,FALSE)","v":"2014-11-09"},{"$f":"VLOOKUP(E100,Costellazioni!A:E,4,FALSE)","v":"Autunno"},"14 x 12","00 39","+ 48 20"]
["C22","NGC 7662",null,"Nebulosa planetaria","Andromeda","8.3",{"$f":"VLOOKUP(E101,Costellazioni!A:E,2,FALSE)","v":"Boreale"},{"$f":"VLOOKUP(E101,Costellazioni!A:E,3,FALSE)","v":"2014-11-10"},{"$f":"VLOOKUP(E101,Costellazioni!A:E,4,FALSE)","v":"Autunno"},"32 x 28","23 25","+ 42 36"]
["C23","NGC 891",null,"Galassia spirale","Andromeda",10,{"$f":"VLOOKUP(E102,Costellazioni!A:E,2,FALSE)","v":"Boreale"},{"$f":"VLOOKUP(E102,Costellazioni!A:E,3,FALSE)","v":"2014-11-10"},{"$f":"VLOOKUP(E102,Costellazioni!A:E,4,FALSE)","v":"Autunno"},"13.5 x 2.5","02 22","+ 42 21"]
["C28","NGC 752",null,"Ammasso aperto","Andromeda","5.7",{"$f":"VLOOKUP(E103,Costellazioni!A:E,2,FALSE)","v":"Boreale"},{"$f":"VLOOKUP(E103,Costellazioni!A:E,3,FALSE)","v":"2014-11-10"},{"$f":"VLOOKUP(E103,Costellazioni!A:E,4,FALSE)","v":"Autunno"},"50.1","01 57","+ 37 51"]
["C51","IC 1613",null,"Galassia irregolare","Balena","9.9",{"$f":"VLOOKUP(E104,Costellazioni!A:E,2,FALSE)","v":"Equatoriale"},{"$f":"VLOOKUP(E104,Costellazioni!A:E,3,FALSE)","v":"2014-11-10"},{"$f":"VLOOKUP(E104,Costellazioni!A:E,4,FALSE)","v":"Autunno"},"16.2 x 14.5","01 04","+ 02 07"]
["C56","NGC 246",null,"Nebulosa planetaria","Balena","10.9",{"$f":"VLOOKUP(E105,Costellazioni!A:E,2,FALSE)","v":"Equatoriale"},{"$f":"VLOOKUP(E105,Costellazioni!A:E,3,FALSE)","v":"2014-11-10"},{"$f":"VLOOKUP(E105,Costellazioni!A:E,4,FALSE)","v":"Autunno"},"4.6 x 4.1","00 47","- 11 52"]
["C62","NGC 247",null,"Galassia spirale","Balena","9.2",{"$f":"VLOOKUP(E106,Costellazioni!A:E,2,FALSE)","v":"Equatoriale"},{"$f":"VLOOKUP(E106,Costellazioni!A:E,3,FALSE)","v":"2014-11-10"},{"$f":"VLOOKUP(E106,Costellazioni!A:E,4,FALSE)","v":"Autunno"},"21.4 x 6.9","00 47","- 20 46"]
["C67","NGC 1097",null,"Galassia spirale barrata ","Fornace","10.2",{"$f":"VLOOKUP(E107,Costellazioni!A:E,2,FALSE)","v":"Australe"},{"$f":"VLOOKUP(E107,Costellazioni!A:E,3,FALSE)","v":"2014-12-02"},{"$f":"VLOOKUP(E107,Costellazioni!A:E,4,FALSE)","v":"Autunno"},"9.3 x 6.3","02 46","- 30 16"]
["C14","NGC 869","DOPPIO AMMASSO","Ammasso aperto","Perseo","4.3",{"$f":"VLOOKUP(E108,Costellazioni!A:E,2,FALSE)","v":"Boreale"},{"$f":"VLOOKUP(E108,Costellazioni!A:E,3,FALSE)","v":"2014-12-10"},{"$f":"VLOOKUP(E108,Costellazioni!A:E,4,FALSE)","v":"Autunno"},30,"02 19","+ 57 09"]
["C24","NGC 1275","PERSEUS A","Galassia peculiare","Perseo","11.9",{"$f":"VLOOKUP(E109,Costellazioni!A:E,2,FALSE)","v":"Boreale"},{"$f":"VLOOKUP(E109,Costellazioni!A:E,3,FALSE)","v":"2014-12-10"},{"$f":"VLOOKUP(E109,Costellazioni!A:E,4,FALSE)","v":"Autunno"},"2.2 x 1.7","03 19","+ 41 29"]
["C87","NGC 1261",null,"Ammasso globulare","Orologio","8.3",{"$f":"VLOOKUP(E110,Costellazioni!A:E,2,FALSE)","v":"Australe"},{"$f":"VLOOKUP(E110,Costellazioni!A:E,3,FALSE)","v":"2014-12-10"},{"$f":"VLOOKUP(E110,Costellazioni!A:E,4,FALSE)","v":"Autunno"},"6.8 x 6.8","03 01","- 55 13"]

{"sheet":"CDD","index":3,"n_rows":64,"n_cols":9,"rows_kept":64,"cut":false,"hidden":false,"merged":[]}
["Camere CCD","Sensore","Tipo","Form","HS","VS","Risoluzione","HP","VP"]
["AstroLumina Alccd 5.2, QHY6","Sony ICX259AL","CCD","1/3\"",4.8899999999999997,3.64,"752 x 582",6.5,6.25]
["AstroLumina ALccd 6C/6Pro","Sony ICX453AQ","CCD","1.8\"",23.65,15.72,"3032 x 2016",7.8,7.8]
["Atik 16","Sony ICX429AKL[AL/ALL]","CCD","1/2\"",6.47,4.83,"752 x 582",8.6,8.3000000000000007]
["Atik 16HR","Sony ICX285AL[AQ]","CCD","2/3\"",8.9700000000000006,6.71,"1390 x 1040",6.45,6.45]
["Atik 16IC","Sony ICX424AL","CCD","1/3\"",4.88,3.66,"659 x 494",7.4,7.4]
["Atik 16IC-S","Sony ICX415AL","CCD","1/2\"",6.49,4.3,"782 x 582",8.3000000000000007,8.3000000000000007]
["Atik 314E/EC","Sony ICX205AK[AL]","CCD","1/2\"",5.95,4.46,"1280 x 960",4.6500000000000004,4.6500000000000004]
["Atik 314L/L+/LC+","Sony ICX285AL[AQ]","CCD","2/3\"",8.9700000000000006,6.71,"1390 x 1040",6.45,6.45]
["Atik 383L+","Kodak KAF-8300","CCD","4/3\"",18.13,13.69,"3358 x 2536",5.4,5.4]
["Atik Titan","Sony ICX424AL","CCD","1/3\"",4.88,3.66,"659 x 494",7.4,7.4]
["Celestron Neximage","Sony ICX098AK[BQ/AL]","CCD","1/4\"",3.58,2.67,"640 x 480",5.6,5.6]
["Imaging Source DMK/DFK/DBK 21AU04.AS","Sony ICX098AK[BQ/AL]","CCD","1/4\"",3.58,2.67,"640 x 480",5.6,5.6]
["Imaging Source DMK/DFK/DBK 21AU618.AS","Sony ICX618ALA","CCD","1/4\"",4.46,3.8,"640 x 480",5.6,5.6]
["Imaging Source DMK/DFK/DBK 31AU03.AS","Sony ICX204AK[AL]","CCD","1/3\"",4.76,3.57,"1024 x 768",4.6500000000000004,4.6500000000000004]
["Imaging Source DMK/DFK/DBK 41AU02.AS","Sony ICX205AK[AL]","CCD","1/2\"",5.95,4.46,"1280 x 960",4.6500000000000004,4.6500000000000004]
["Imaging Source DMK/DFK/DBK 51AU02.AS","Sony ICX274AQ","CCD","1/1.8\"",8.5,6.8,"1600 x 1200",4.4000000000000004,4.4000000000000004]
["I-Tec iCam CCD","Sony ICX098AK[BQ/AL]","CCD","1/4\"",3.58,2.67,"640 x 480",5.6,5.6]
["Magzero I-Nova PLA-C+","Sony ICX098BQ","CCD","1/4\"",3.58,2.67,"640 x 480",5.6,5.6]
["Magzero I-Nova PLA-Mx","Sony ICX618ALA ","CCD","1/4\"",4.46,3.8,"640 x 480",5.6,5.6]
["Magzero I-Nova PLB-C2","Sony ICX204AK[AL]","CCD","1/3\"",4.76,3.57,"1024 x 768",4.6500000000000004,4.6500000000000004]
["Magzero I-Nova PLB-Mx","Sony ICX445ALA","CCD","1/3\"",4.83,3.63,"1280 x 960",3.75,3.75]
["Magzero MZ-2PRO","Sony ICX285AL[AQ]","CCD","2/3\"",8.9700000000000006,6.71,"1390 x 1040",6.45,6.45]
["Magzero MZ-9","Kodak KAF-8300","CCD","4/3\"",18.13,13.69,"3358 x 2536",5.4,5.4]
["Magzero QHY8L/MZ-8i/MZ8PRO","Sony ICX453AQ","CCD","1.8\"",23.65,15.72,"3032 x 2016",7.8,7.8]
["Meade DSI II, DSI Pro II","Sony ICX429AKL[AL/ALL]","CCD","1/2\"",6.47,4.83,"752 x 582",8.6,8.3000000000000007]
["Meade DSI III/PRO","Sony ICX285AL[AQ]","CCD","2/3\"",8.9700000000000006,6.71,"1390 x 1040",6.45,6.45]
["Orion Starshoot II","Sony ICX429AKL[AL/ALL]","CCD","1/2\"",6.47,4.83,"752 x 582",8.6,8.3000000000000007]
["Orion Starshoot Pro 6mp V2 (da verificare)","Sony ICX453AQ","CCD","1.8\"",23.65,15.72,"3032 x 2016",7.8,7.8]
["PGR Chameleon","Sony ICX445AKA","CCD","1/3\"",4.8600000000000003,3.62,"1296 x 964",3.75,3.75]
["Philips Vesta/Toucam/SPC900","Sony ICX098AK[BQ/AL]","CCD","1/4\"",3.58,2.67,"640 x 480",5.6,5.6]
["sac-10, Opticstar DS-335C/ICE","Sony ICX262AQ","CCD","1/1.8\"",7.38,5.38,"2140 x 1560",3.45,3.45]
["Sbig ST-I","Kodak KAI-340 ","CCD","1/3\"",4.7359999999999998,3.552,"648 x 484",7.4,7.4]
["Starlight Xpress Lodestar","Sony ICX429AL","CCD","1/2\"",6.47,4.83,"751 x 582",8.6,8.3000000000000007]
["Starlight Xpress Lodestar X2","Sony ICX829AL","CCD","1/2\"",6.4,4.5,"752 x 582",8.6,8.3000000000000007]
["Starlight Xpress MX716/MX7C","Sony ICX249AK[AL]","CCD","1/2\"",6.73,4.3,"782 x 582",8.6,8.3000000000000007]
["Starlight Xpress SXVF-H9/H9C","Kodak KAF-8300","CCD","4/3\"",18.13,13.69,"3358 x 2536",5.4,5.4]
["Starlight Xpress SXVF-M7.","Sony ICX429AKL[AL/ALL]","CCD","1/2\"",6.47,4.83,"752 x 582",8.6,8.3000000000000007]
["Starlight Xpress SXVF-M8C","Sony ICX406AQ","CCD","1/1.8\"",7.17,5.43,"2312 x 1750",3.1,3.1]
["TS TSSSI","Sony ICX098AK[BQ/AL]","CCD","1/4\"",3.58,2.67,"640 x 480",5.6,5.6]
["TS TSWCIR","Sony ICX098AK[BQ/AL]","CCD","1/4\"",3.58,2.67,"640 x 480",5.6,5.6]
["ASI034MC","ASX340CS","CMOS","1/4\"",4.01,2.87,"728 X 512",5.6,5.6]
["ASI120MM","Aptina MT9M034","CMOS","1/3\"",4.83,3.63,"1280 x 960",3.75,3.75]
["Astrolumina AL CCD 5","Micron MT9M001 ","CMOS","1/2\"",6.66,5.32,"1280 x 1024",5.2,5.2]
["Fishcamp Starfish","Micron MT9M001 ","CMOS","1/2\"",6.66,5.32,"1280 x 1024",5.2,5.2]
["Magzero MZ5 m/c","Micron MT9M001 ","CMOS","1/2\"",6.66,5.32,"1280 x 1024",5.2,5.2]
["Magzero MZ5c PLUS","Micron MT9T001","CMOS","1/2\"",6.55,4.92,"2048 x 1536",3.2,3.2]
["Orion SSSCI3","Micron MT9M001 ","CMOS","1/2\"",6.66,5.32,"1280 x 1024",5.2,5.2]
["Orion StarShoot Autoguider","Micron MT9M001 ","CMOS","1/2\"",6.66,5.32,"1280 x 1024",5.2,5.2]
["Pentaflex TEM-1300","Micron MT9M001 ","CMOS","1/2\"",6.66,5.32,"1280 x 1024",5.2,5.2]
["QHY5L II","Aptina MT9M034","CMOS","1/3\"",4.83,3.63,"1280 x 960",3.75,3.75]
["TS TSAstroWC","Micron MT9M001 ","CMOS","1/2\"",6.66,5.32,"1280 x 1024",5.2,5.2]
["Canon 1000D/Rebel XS","Canon 1000D","DSLR","APSC",22.2,14.8,"3888 x 2592",5.71,5.71]
["Canon 1D MK4","Canon 1D MK4","DSLR","APSH",27.9,18.600000000000001,"4896 x 3264",5.7,5.7]
["Canon 350D/Rebel XT","Canon 350D","DSLR","APSC",22.2,14.8,"3456 x 2304",6.42,6.42]
["Canon 400D/Rebel XTi","Canon 400D","DSLR","APSC",22.2,14.8,"3888 x 2592",5.71,5.71]
["Canon 450D/Rebel XSi","Canon 450D","DSLR","APSC",22.2,14.8,"4272 x 2848",5.2,5.2]
["Canon 500D/Rebel T1i","Canon 500D","DSLR","APSC",22.2,14.8,"4752 x 3168",4.67,4.67]
["Canon 50D","Canon 50D","DSLR","APSC",22.2,14.8,"4752 x 3168",4.67,4.67]
["Canon 550D/Rebel T2i","Canon 550D","DSLR","APSC",22.2,14.8,"5184 x 3456",4.28,4.28]
["Canon 5D MK2","Canon 5D MK2","DSLR","FF",36,24,"5616 x 3744",6.4,6.4]
["Canon 6D","Canon 6D","DSLR","FF",36,24,"5472 x 3648",6.55,6.55]
["Nikon D3000","Nikon D3000","DSLR","DXN",23.6,15.8,"3872 x 2592",6.09,6.09]
["Nikon D5000","Nikon D5000","DSLR","DXN",23.6,15.8,"4288 x 2848",5.5,5.5]

{"sheet":"Costellazioni","index":4,"n_rows":89,"n_cols":5,"rows_kept":89,"cut":false,"hidden":true,"merged":[]}
["COSTELLAZIONE","TIPO","CULMINAZIONE","STAGIONE","STELLA DI RIFERIMENTO"]
["Acquario","Equatoriale","2014-09-25",{"$f":"IF(AND(C2>=41719,C2<41811),\"Primavera\",IF(AND(C2>=41811,C2<41905),\"Estate\",IF(AND(C2>=41905,C2<41994),\"Autunno\",IF(OR(C2<41719,C2>=41994),\"Inverno\"))))","v":"Autunno"},"Sadalmelik"]
["Altare","Australe","2014-06-10","Primavera"]
["Andromeda","Boreale","2014-11-10","Autunno","Alpheratz o Sirrah"]
["Aquila","Equatoriale","2014-08-15","Estate","Altair"]
["Ariete","Equatoriale","2014-11-30","Autunno","Hamal"]
["Auriga","Boreale","2014-01-20","Inverno","Capella"]
["Balena","Equatoriale","2014-11-10","Autunno","Menkar, Deneb Kaitos"]
["Bilancia","Equatoriale","2014-06-10","Primavera","Zuben Elgenubi"]
["Boote","Equatoriale","2014-06-02","Primavera","Arturo"]
["Bulino","Australe","2014-11-30","Autunno"]
["Bussola","Australe","2014-03-06","Inverno"]
["Camaleonte","Australe","2014-03-30","Primavera"]
["Cancro","Equatoriale","2014-02-28","Inverno","Acubens"]
["Cane Maggiore","Equatoriale","2014-02-01","Inverno","Sirio"]
["Cane Minore","Equatoriale","2014-02-15","Inverno","Procione"]
["Cani da Caccia","Boreale","2014-05-07","Primavera","Cor Caroli"]
["Capricorno","Equatoriale","2014-09-08","Estate","Al Giedi"]
["Carena","Australe","2014-03-02","Inverno","Canopo"]
["Cassiopea","Boreale","2014-11-09","Autunno","Schedar"]
["Cavallino","Equatoriale","2014-09-08","Estate","Kitalpha"]
["Cefeo","Boreale","2014-10-29","Autunno","Alderamin"]
["Centauro","Australe","2014-04-30","Primavera","Rigel Kentaurus"]
["Chioma di Berenice","Equatoriale","2014-05-02","Primavera","Diadema"]
["Cigno","Boreale","2014-08-20","Estate","Deneb"]
["Colomba","Australe","2014-01-16","Inverno","Phakt"]
["Compasso","Australe","2014-05-29","Primavera"]
["Corona Australe","Australe","2014-07-30","Estate","Alfecca Meridiana"]
["Corona Boreale","Boreale","2014-06-19","Primavera","Gemma"]
["Corvo","Equatoriale","2014-04-20","Primavera","Alchiba"]
["Cratere","Equatoriale","2014-04-20","Primavera","Alkes"]
["Croce del Sud","Australe","2014-04-27","Primavera","Acrux"]
["Delfino","Equatoriale","2014-08-31","Estate","Sualocin"]
["Dorado","Australe","2014-01-16",{"$f":"IF(AND(C34>=41719,C34<41811),\"Primavera\",IF(AND(C34>=41811,C34<41905),\"Estate\",IF(AND(C34>=41905,C34<41994),\"Autunno\",IF(OR(C34<41719,C34>=41994),\"Inverno\"))))","v":"Inverno"}]
["Dragone","Boreale","2014-05-25","Primavera","Thuban"]
["Ercole","Boreale","2014-06-13","Primavera","Ras Algethi"]
["Eridano","Equatoriale","2014-12-10","Autunno","Achernar"]
["Fenice","Australe","2014-11-03","Autunno","Ankaa"]
["Fornace","Australe","2014-12-02","Autunno"]
["Freccia","Equatoriale","2014-08-15","Estate","Sham"]
["Gemelli","Equatoriale","2014-02-05","Inverno","Castore, Polluce"]
["Giraffa","Boreale","2014-01-23","Inverno"]
["Gru","Australe","2014-09-28","Autunno","Al Na’ir"]
["Idra","Equatoriale","2014-04-15","Primavera","Alphard"]
["Idra Maschio","Australe","2014-10-25","Autunno"]
["Indiano","Australe","2014-09-11","Estate"]
["Leone","Equatoriale","2014-04-01","Primavera","Regolo"]
["Leone Minore","Boreale","2014-03-23","Primavera"]
["Lepre","Equatoriale","2014-01-15","Inverno","Arneb"]
["Lince","Boreale","2014-02-19","Inverno"]
["Lira","Boreale","2014-08-01","Estate","Vega"]
["Lucertola","Boreale","2014-09-25","Autunno"]
["Lupo","Australe","2014-06-08","Primavera"]
["Macchina Pneumatica","Australe","2014-03-25","Primavera"]
["Mensa","Australe","2014-01-13","Inverno"]
["Microscopio","Australe","2014-09-03","Estate"]
["Mosca","Australe","2014-04-30","Primavera"]
["Ofiuco","Equatoriale","2014-07-10","Estate","Ras Alhague"]
["Orione","Equatoriale","2014-01-15","Inverno","Betelgeuse"]
["Orologio","Australe","2014-12-10","Autunno"]
["Orsa Maggiore","Boreale","2014-04-11","Primavera","Dubhe"]
["Orsa Minore","Boreale","2014-06-13","Primavera","Polare"]
["Ottante","Australe",null,"Inverno"]
["Pavone","Australe","2014-08-14","Estate","Peacock"]
["Pegaso","Equatoriale","2014-10-01","Autunno","Markab"]
["Perseo","Boreale","2014-12-10",{"$f":"IF(AND(C66>=41719,C66<41811),\"Primavera\",IF(AND(C66>=41811,C66<41905),\"Estate\",IF(AND(C66>=41905,C66<41994),\"Autunno\",IF(OR(C66<41719,C66>=41994),\"Inverno\"))))","v":"Autunno"},"Algenib, Marfak"]
["Pesce Australe","Australe","2014-09-24","Autunno","Fomalhaut"]
["Pesce Volante","Australe","2014-02-17","Inverno"]
["Pesci","Equatoriale","2014-10-25","Autunno","El Rischa"]
["Pittore","Australe","2014-01-15","Inverno"]
["Poppa","Australe","2014-02-17","Inverno","Naos"]
["Regolo","Australe","2014-06-18","Primavera"]
["Reticolo","Australe","2014-12-18","Autunno"]
["Sagittario","Equatoriale","2014-08-10","Estate","Al Rami o Rukbat"]
["Scorpione","Equatoriale","2014-07-03","Estate","Antares"]
["Scudo","Equatoriale","2014-08-01","Estate"]
["Scultore","Australe","2014-10-25","Autunno"]
["Serpente","Equatoriale","2014-07-01","Estate","Unukalhai"]
["Sestante","Equatoriale","2014-03-22","Primavera"]
["Telescopio","Australe","2014-08-09","Estate"]
["Toro","Equatoriale","2014-01-01","Inverno","Aldebaran"]
["Triangolo","Boreale","2014-11-25","Autunno","Al Muthallat"]
["Triangolo Australe","Australe","2014-06-22","Estate"]
["Tucano","Australe","2014-10-16","Autunno"]
["Uccello del Paradiso","Australe","2014-06-20","Primavera"]
["Unicorno","Equatoriale","2014-02-05","Inverno"]
["Vele","Australe","2014-03-15","Inverno"]
["Vergine","Equatoriale","2014-05-10","Primavera","Spica"]
["Volpetta","Equatoriale","2014-08-25","Estate","Anser"]

{"sheet":"Telescopi","index":5,"n_rows":47,"n_cols":5,"rows_kept":47,"cut":false,"hidden":false,"merged":[]}
["Modello","Tipo","D","LF","RF"]
["Astro-Tech AT 90EDT, TS TL APO 906T","Rifrattore",90,600,{"$f":"D2/C2","v":6.666666666666667}]
["Celestron C11","Smith-Cassegrain",280,2800,10]
["Celestron C6","Smith-Cassegrain",150,1500,10]
["Celestron C8, Meade 8\"","Smith-Cassegrain",203,2032,10.009852216748769]
["Celestron C9¼","Smith-Cassegrain",235,2350,10]
["GSO RC 10\"","Ritchey-Chrétien",254,2000,7.8740157480314963]
["GSO RC 8\"","Ritchey-Chrétien",203,1624,8]
["Guida 50mm (cercatore)","Rifrattore",50,162,3.24]
["Guida 60/228","Rifrattore",60,228,3.8]
["Guida 80/328","Rifrattore",80,328,4.0999999999999996]
["Meade ACF 10\"","Smith-Cassegrain",250,2500,10]
["Meade ACF 12\"","Smith-Cassegrain",300,3000,10]
["Meade Starfinder 12\"","Dobson",300,1500,5]
["Mizar 110mm","Newton",110,720,6.5454545454545459]
["Nikkor Ai-S 200mm F4","Obbiettivo",50,200,4]
["Pentacon Electric 135mm F2.8 M42","Obbiettivo",48,135,2.8125]
["Pentacon Six 300mm F4 M42","Obbiettivo",75,300,4]
["Rifrattore 80/480","Rifrattore",80,480,6]
["Scopos 66","Rifrattore",66,400,6.0606060606060606]
["SIMAK ZEN 190/1000","Maksutov-Cassegrain",190,1000,5.2631578947368425]
["Skywatcher 100ED","Rifrattore",100,900,9]
["Skywatcher 120/1000","Rifrattore",120,1000,8.3333333333333339]
["Skywatcher 120/600","Rifrattore",120,600,5]
["Skywatcher 120ED","Rifrattore",120,900,7.5]
["Skywatcher 130mm F5","Newton",130,650,5]
["Skywatcher 130mm F7","Newton",130,900,6.9230769230769234]
["Skywatcher 150mm F5","Newton",150,750,5]
["Skywatcher 200mm F5","Newton",200,1000,5]
["Skywatcher 200mm F6","Newton",200,1200,6]
["Skywatcher 250mm F5","Newton",250,1200,4.8]
["Skywatcher 300mm F6","Newton",300,1800,6]
["Skywatcher 70/500","Rifrattore",70,500,7.1428571428571432]
["Skywatcher 80/400","Rifrattore",80,400,5]
["Skywatcher 80ED","Rifrattore",80,600,7.5]
["Skywatcher MC 127","Maksutov-Cassegrain",127,1500,11.811023622047244]
["Skywatcher MC 90","Maksutov-Cassegrain",90,1250,13.888888888888889]
["Skywatcher MN190","Maksutov-Newton",190,1000,5.2631578947368425]
["Super Takumar 55mm F1.8 M42","Obbiettivo",30,55,1.8333333333333333]
["Vixen 102M","Rifrattore",102,1000,9.8039215686274517]
["Vixen 80L","Rifrattore",80,1200,15]
["Vixen 80M","Rifrattore",80,1000,12.5]
["Vixen 81S","Rifrattore",81,625,7.716049382716049]
["Vixen 90L","Rifrattore",90,1300,14.444444444444445]
["Vixen 90M","Rifrattore",90,1000,11.111111111111111]
["Vixen VMC110L","Maksutov-Cassegrain",110,1035,9.4090909090909083]
["Vixen VMC200L","Maksutov-Cassegrain",200,1950,9.75]

{"sheet":"Pianeti","index":6,"n_rows":10,"n_cols":4,"rows_kept":10,"cut":false,"hidden":true,"merged":[]}
["PIANETA","DISTANZA MEDIA MASSIMA ELONGAZIONE OPPOSIZIONE [Km]","PERIODO DI ROTAZIONE [secondi]","RAGGIO [Km]"]
["Mercurio",{"$f":"1.2*10^6","v":1200000},{"$f":"5.08*10^6","v":5080000},2440]
["Venere",{"$f":"1.03*10^6","v":1030000},{"$f":"2.11*10^7","v":21100000},6050]
["Marte",{"$f":"78*10^6","v":78000000},{"$f":"8.9*10^4","v":89000},3400]
["Giove",{"$f":"589*10^6","v":589000000},{"$f":"3.58*10^4","v":35800},71500]
["Saturno",{"$f":"1195*10^6","v":1195000000},{"$f":"3.84*10^4","v":38400},60270]
["Urano",{"$f":"2582*10^6","v":2582000000},{"$f":"6.22*10^4","v":62200},25570]
["Nettuno",{"$f":"4306*10^6","v":4306000000},{"$f":"5.81*10^4","v":58099.999999999993},24750]
["Sole",{"$f":"149.6*10^6","v":149600000},{"$f":"2.19*10^6","v":2190000},695000]
["Luna",{"$f":"3.84*10^5","v":384000},{"$f":"2.55*10^6","v":2550000},1380]